Workbook

Sheet TABLAS INIFED
A1: 1.1. COSTOS PARAMÉTRICOS DE CONSTRUCCIÓN.
A4: Tabla 1.1.A. Análisis de costos de infraestructura física educativa por nivel y modalidad. | C4: 0.2742
C5: 2020-06-01 | D5: 2013-12-01 | E5: FACTOR INTERCIUDAD
A6: NIVEL EDUCATIVO | B6: MODALIDAD | C6: COSTO / M2 | E6: =+'DATOS Y PRESENTACION'!D24 -> 0.9697
A8: BÁSICO | B8: BASICO Preescolar | C8: =+D8*($C$4+1)*$E$6 -> 7104.652505 | D8: 5750
B9: BASICO Primaria | C9: =+D9*($C$4+1)*$E$6 -> 8278.464658 | D9: 6700
B10: BASICO Telesecundaria | C10: =+D10*($C$4+1)*$E$6 -> 6919.313744 | D10: 5600
B11: BASICO Secundaria General | C11: 8896.260528 | D11: 7200
B12: BASICO Secundaria Técnica | C12: 8896.260528 | D12: 7200
C13: 0
A14: MEDIO SUPERIOR | B14: MEDIO SUPERIOR Bachillerato General | C14: 8927.150321 | D14: 7225
B15: MEDIO SUPERIOR CBTA | C15: 10459.28408 | D15: 8465
B16: MEDIO SUPERIOR CBTIS | C16: 10459.28408 | D16: 8465
B17: MEDIO SUPERIRO CETIS | C17: 8581.184634 | D17: 6945
B18: MEDIO SUPERIOR CET del Mar | C18: 10033.00493 | D18: 8120
B19: MEDIO SUPERIOR CONALEP | C19: 9945.277915 | D19: 8049
C20: 0
A21: SUPERIOR | B21: SUPERIOR Institutos Tecnológicos. | C21: 14827.10088 | D21: 12000
B22: SUPERIOR Universidades Tecnológicas. | C22: 14827.10088 | D22: 12000
B23: SUPERIOR Universidades Politécnicas. | C23: 14827.10088 | D23: 12000
C24: 0
A25: EDUCACIÓN EXTRAESCOLAR Y DE CAPACITACION | B25: EXTRAESCOLAR Y CAPACITACION Centro de Desarrollo Infantil. | C25: 9168.090711 | D25: 7420
B26: EXTRAESCOLAR Y CAPACITACION Audición y Lenguaje. | C26: 8426.735667 | D26: 6820
B27: EXTRAESCOLAR Y CAPACITACION Deficientes Mentales. | C27: 8105.481814 | D27: 6560
B28: EXTRAESCOLAR Y CAPACITACION Audición y Deficientes Mentales. | C28: 8425.500075 | D28: 6819
B29: EXTRAESCOLAR Y CAPACITACION Centro Psicopedagógico. | C29: 8988.929909 | D29: 7275
B30: EXTRAESCOLAR Y CAPACITACION Capacitación para el Trabajo de Educacion especial | C30: 7648.312871 | D30: 6190
B31: ESTRAESCOLAR Y CAPACITACION Centro Múltiple Único. | C31: 9168.090711 | D31: 7420
B32: EXTRAESCOLAR Y CAPACITACION Centro de Estimulación Temprana. | C32: 9563.480068 | D32: 7740
B33: EXTRAESCOLAR Y CAPACITACION Centro de Capacitación para el Trabajo. | C33: 7648.312871 | D33: 6190
A35: 1.2. FACTORES DE SUPERFICIE.
A36: El monto de la remuneración por servicios profesionales disminuye a razón de la mayor dimensión de | C36: =+G37 -> 0
A37: superficie proyectada. | B37: FACTOR DE SUPERFICIE | C37: =VLOOKUP(C36,B41:C87,2,FALSE) ->  | D37: =+'DATOS Y PRESENTACION'!D16 -> 0 | E37: M2 DE CONSTRUCCION | G37: =IF(D45=0,_xlfn.CEILING.MATH($D$37,100),IF(D45=1,_xlfn.CEILING.MATH($D$37,200),IF(D45=2,_xlfn.CEILING.MATH($D$37,1000),IF(D45=3,_xlfn.CEILING.MATH($D$37,2000),IF(D45=4,_xlfn.CEILING.MATH($D$37,5000),IF(D45=5,_xlfn.CEILING.MATH($D$37,10000)," ")))))) -> 0
A39: RANGOS DE SUPERFICIE M2 | C39: FACTOR DE SUPERFICIE | D39: =+IF(D37>400,1," ") -> 
D40: =+IF(D37>4000,1," ") -> 
A41: Hasta 100 | B41: 100 | C41: 0.12 | D41: =+IF(D37>10000,1," ") -> 
A42: 101 – 200 | B42: 200 | C42: 0.1091 | D42: =+IF(D37>30000,1," ") -> 
A43: 201 – 300 | B43: 300 | C43: 0.0993 | D43: =+IF(D37>50000,1," ") -> 
A44: 301 – 400 | B44: 400 | C44: 0.0924 | D44: =+IF(D37>100000,1," ") -> 
A45: 401 – 600 | B45: 600 | C45: 0.0907 | D45: =SUM(D38:D44) -> 0 | E45: =IF(D45=6,_xlfn.CEILING.MATH(D37,10000)) -> FALSE
A46: 601 – 800 | B46: 800 | C46: 0.0855
A47: 801 – 1,000 | B47: 1000 | C47: 0.0821
A48: 1,001 – 1,200 | B48: 1200 | C48: 0.0806
A49: 1,201 – 1,400 | B49: 1400 | C49: 0.0791
A50: 1,401 – 1,600 | B50: 1600 | C50: 0.0775
A51: 1,601 – 1,800 | B51: 1800 | C51: 0.076
A52: 1,801 – 2,000 | B52: 2000 | C52: 0.0745
A53: 2,001 – 2,200 | B53: 2200 | C53: 0.0732
A54: 2,201 – 2,400 | B54: 2400 | C54: 0.0718
A55: 2,401 – 2,600 | B55: 2600 | C55: 0.0705
A56: 2,601 – 2,800 | B56: 2800 | C56: 0.0691
A57: 2,801 – 3,000 | B57: 3000 | C57: 0.0678
A58: 3,001 – 3,200 | B58: 3200 | C58: 0.0666
A59: 3,201 – 3,400 | B59: 3400 | C59: 0.0654
A60: 3,401 – 3,600 | B60: 3600 | C60: 0.0641
A61: 3,601 – 3,800 | B61: 3800 | C61: 0.0629
A62: 3,801 – 4,000 | B62: 4000 | C62: 0.0617
A63: 4,001 – 5,000 | B63: 5000 | C63: 0.0608
A64: 5,001 – 6,000 | B64: 6000 | C64: 0.0598
A65: 6,001 – 7,000 | B65: 7000 | C65: 0.0589
A66: 7,001 – 8,000 | B66: 8000 | C66: 0.0579
A67: 8,001 – 9,000 | B67: 9000 | C67: 0.057
A68: 9,001 – 10,000 | B68: 10000 | C68: 0.056
A69: 10,001 – 12,000 | B69: 12000 | C69: 0.055
A70: 12,001 – 14,000 | B70: 14000 | C70: 0.054
A71: 14,001 – 16,000 | B71: 16000 | C71: 0.053
A72: 16,001 – 18,000 | B72: 18000 | C72: 0.052
A73: 18,001 – 20,000 | B73: 20000 | C73: 0.051
A74: 20,001 – 22,000 | B74: 22000 | C74: 0.0498
A75: 22,001 – 24,000 | B75: 24000 | C75: 0.0486
A76: 24,001 – 26,000 | B76: 26000 | C76: 0.0475
A77: 26,001 – 28,000 | B77: 28000 | C77: 0.0463
A78: 28,001 – 30,000 | B78: 30000 | C78: 0.0451
A79: 30,001 – 35,000 | B79: 35000 | C79: 0.0436
A80: 35,001 – 40,000 | B80: 40000 | C80: 0.0421
A81: 40,001 – 45,000 | B81: 45000 | C81: 0.0419
A82: 45,001 – 50,000 | B82: 50000 | C82: 0.0418
A83: 50,001 – 60,000 | B83: 60000 | C83: 0.0414
A84: 60,001 – 70,000 | B84: 70000 | C84: 0.0411
A85: 70,001 – 80,000 | B85: 80000 | C85: 0.0407
A86: 80,001 – 90,000 | B86: 90000 | C86: 0.0404
A87: 90,001 – 100,000 | B87: 100000 | C87: 0.04
A117: 1 Universidad Nacional Autónoma de México. Dirección General de Obras y Conservación. Arancel para el Pago de honorarios.
A118: Universidad Nacional Autónoma de México. México, D.F. Capitulo 9, página 21.
A122: 1.3. FACTORES DE ESPECIALIDAD.
A123: Tabla 1.3.A. Porcentajes para determinar el factor de especialidad.
A124: CONCEPTO | B124: FACTOR DE ESPECIALIDAD
A127: Proyecto Arquitectónico. | B127: 0.589
A128: Ingeniería Civil (estructuras). | B128: 0.1304
A129: Ingeniería Eléctrica. | B129: 0.1063
A130: Ingeniería Hidráulica y Sanitaria. | B130: 0.0512
A131: Instalación de Protección Contra Incendio. | B131: 0.0355
A132: Instalación de Gases. | B132: 0.0128
A133: Ingeniería de Aire Acondicionado (extracción y ventilación mecánica). | B133: 0.0236
A134: Ingeniería de Telecomunicaciones. | B134: 0.0512
A135: TOTAL: | B135: =SUM(B127:B134) -> 1
A139: 1.4. FACTORES PARA PROYECTOS Y SERVICIOS FORÁNEOS POR ENTIDAD FEDERATIVA Y TIPO DE CLIMA.
A140: Para los siguientes servicios que se realicen al interior de la República Mexicana, se aplicará el factor
A141: de servicios foráneos (Ff) establecido en la Tabla 1.4.A. Factores promedio por entidad federativa y
A142: tipo de clima.
A143: 2.1.9.3. Levantamiento Topográfico.
A144: 2.2. Dirección Arquitectónica de Obra.
A145: 2.3. Supervisión de Obra.
A146: 2.4. Supervisión de Proyecto.
A147: 2.5. Servicios de consultoría y asesoría profesional.
A149: Tabla 1.4.A. Factores promedio por entidad federativa y tipo de clima
A150: ENTIDAD FEDERATIVA
A151: Aguascalientes. Altiplano. 1.19 | B151: Altiplano | C151: 1.19
A152: Baja California. | B152: Altiplano | C152: 1.38
A153: Baja California. | B153: Extremoso | C153: 1.45
A154: Baja California Sur. | B154: Tropical | C154: 1.3
A155: Baja California Sur. | B155: Extremoso | C155: 1.3
A156: Campeche. | B156: Tropical | C156: 1.35
A157: Coahuila. | B157: Altiplano | C157: 1.11
A158: Coahuila. | B158: Extremoso | C158: 1.21
A159: Colima. | B159: Tropical | C159: 1.15
A160: Chiapas. | B160: Altiplano | C160: 1.28
A161: Chiapas. | B161: Tropical | C161: 1.25
A162: Chihuahua. | B162: Extremoso | C162: 1.25
A163: Ciudad de México y zona metropolitana del Estado de México. | B163: Altiplano | C163: 1
A164: Durango. | B164: Extremoso | C164: 1.2
A165: Estado de México (Excepto zona metropolitana). | B165: Altiplano | C165: 1.11
A166: Guanajuato. | B166: Altiplano | C166: 1.15
A167: Guerrero. | B167: Altiplano | C167: 1.27
A168: Guerrero. | B168: Tropical | C168: 1.28
A169: Hidalgo. | B169: Altiplano | C169: 1.12
A170: Hidalgo. | B170: Tropical | C170: 1.21
A171: Jalisco. | B171: Altiplano | C171: 1.15
A172: Jalisco. | B172: Tropical | C172: 1.2
A173: Michoacán. | B173: Altiplano | C173: 1.18
A174: Michoacán. | B174: Tropical | C174: 1.3
A175: Morelos. | B175: Altiplano | C175: 1.1
A176: Morelos. | B176: Tropical | C176: 1.17
A177: Nayarit. | B177: Tropical | C177: 1.17
A178: Nuevo León. | B178: Altiplano | C178: 1.15
A179: Nuevo León. | B179: Extremoso | C179: 1.2
A180: Oaxaca. | B180: Altiplano | C180: 1.17
A181: Oaxaca. | B181: Tropical | C181: 1.18
A182: Puebla. | B182: Altiplano | C182: 1.17
A183: Puebla. | B183: Tropical | C183: 1.22
A184: Querétaro. | B184: Altiplano | C184: 1.13
A185: Quintana Roo. | B185: Tropical | C185: 1.32
A186: San Luis Potosí. | B186: Altiplano | C186: 1.13
A187: San Luis Potosí. | B187: Tropical | C187: 1.2
A188: San Luis Potosí. | B188: Extremoso | C188: 1.2
A189: Sinaloa. | B189: Tropical | C189: 1.3
A190: Sonora. | B190: Tropical | C190: 1.3
A191: Sonora. | B191: Extremoso | C191: 1.32
A192: Tabasco. | B192: Tropical | C192: 1.64
A193: Tamaulipas. | B193: Tropical | C193: 1.3
A194: Tamaulipas. | B194: Extremoso | C194: 1.4
A195: Tlaxcala. | B195: Altiplano | C195: 1.16
A196: Veracruz. | B196: Altiplano | C196: 1.2
A197: Veracruz. | B197: Tropical | C197: 1.3
A198: Yucatán. | B198: Tropical | C198: 1.25
A199: Zacatecas. | B199: Altiplano | C199: 1.25
A200: Zacatecas. | B200: Extremoso | C200: 1.32
A202: Fuente: Secretaría de Desarrollo Social. Tabulador general de precios unitarios 2010. SEDESOL. México, D.F. 2010.
A204: 2. CÁLCULO DE HONORARIOS.
A205: 1.1. PROYECTO EJECUTIVO.
A206: El proyecto ejecutivo es la suma de los costos de las especialidades aplicando el factor
A207: correspondiente especificado en el punto 1.3.A Factores de especialidad de este arancel.
A208: El proyecto ejecutivo se integrará, de manera enunciativa y no limitativa, por las siguientes
A209: especialidades:
A210: 2.1.1. Proyecto arquitectónico.
A211: 2.1.2. Proyecto estructural.
A212: 2.1.3. Proyecto de instalaciones eléctricas.
A213: 2.1.4. Proyecto de instalaciones hidráulicas y sanitarias.
A214: 2.1.5. Proyecto de instalaciones contra incendios.
A215: 2.1.6. Proyecto de instalaciones de gases.
A216: 2.1.7. Proyecto aire acondicionado.
A217: 2.1.8. Proyecto de telecomunicaciones.
A218: 2.1.9. Estudios técnicos especializados.
A219: Para efectos de este arancel, el proyecto ejecutivo se clasificará en las siguientes etapas por
A220: especialidad:
A221: a. Anteproyecto.
A222: b. Proyecto definitivo.
A223: c. Estudios complementarios.
A224: a. Anteproyecto.
A225: La fase de anteproyecto comprende el conjunto de gráficos y documentos que proporcionan la idea
A226: general del proyecto de obra, respondiendo a las condiciones establecidas en el programa
A227: arquitectónico, las características del terreno seleccionado, el entorno y los reglamentos a los cuales
A228: debe sujetarse.
A229: b. Proyecto definitivo.
A230: En la etapa de proyecto definitivo se especifican a detalle todos los elementos, sistemas
A231: constructivos, materiales, equipos y mobiliario que permitan la ejecución de la obra.
A232: c. Estudios complementarios.
A233: Consisten en los estudios y actividades físicas o analíticas que se requerirán para fundamentar las
A234: especificaciones constructivas del proyecto ejecutivo de acuerdo con las condiciones del sitio, la
A235: reglamentación y normatividad aplicable en la zona.
A237: 1.1.1. PROYECTO ARQUITECTÓNICO.
A238: El proyecto arquitectónico debe entenderse como el conjunto de documentos, cálculos,
A239: especificaciones y gráficos que expresan las soluciones arquitectónicas requeridas para satisfacer las
A240: necesidades definidas por el programa arquitectónico.
A241: Para su elaboración se seguirán los criterios consignados en la normatividad que sea aplicable.
A242: Fórmula para el cálculo de los honorarios del proyecto arquitectónico:
A243: H = (CO)(FS)(FE)(FA)
A244: Donde:
A245: H= Honorarios.
A246: CO= Costo estimado de la obra igual a (m2 de proyecto) ($/m2 de construcción).
... 1155 more rows

Sheet DATOS Y PRESENTACION
C3: ARANCELES PROFESIONALES DE HONORARIOS POR INTEGRACION DE DICTAMENES Y FUNCION PERICIAL PARA EL INIFEG EN EL ESTADO DE GUANAJUATO
C5: ANALISIS DE VERIFICACION NORMATIVA INIFED
C7: NOMBRE DE LA ESCUELA
C8: UBICACIÓN
C9: PROPIETARIO
C10: NIVEL
C11: MODALIDAD
C12: GRUPOS
C13: TIPO DE TRAMITE
C15: SUPERFICIE DE TERRENO | E15: =+IF(D15=""," ","M2") -> 
C16: SUPERFICIE DE AREA CONSTRUIDA | E16: =+IF(D16=""," ","M2") -> 
C17: SUPERFICIE DE PROYECTO DE GUIA MECANICA
C19: COSTO POR M2 SEGÚN GENERO DE EDIFICIO | D19: =IF(D16=""," ",VLOOKUP(D11,'TABLAS INIFED'!B6:C34,2,FALSE)) -> 
C20: COSTO ESTIMADO DE LA OBRA | D20: =IF(D16=""," ",+D19*D16) -> 
C21: COSTO ESTIMADO DEL PROYECTO EJECUTIVO | D21: =+IF(D16=""," ",+D211) ->  | E21: =+D21/D20 -> 
C22: LOCALIZACION DEL INMUEBLE (CIUDAD)
C23: FACTOR PARA PROYECTOS FORANEOS POR (CIUDAD) | D23: =+IF(D16=""," ",VLOOKUP(D22,'TABLAS INIFED'!A151:C200,3,FALSE)) -> 
C24: FACTOR INTERCIUDAD PARAMETRICOS (ZONA BAJIO) | D24: 0.9697
C25: FACTOR DE SUPERFICIE | D25: =+IF(D16=""," ",'TABLAS INIFED'!C37) -> 
C26: FACTOR DE ALCANCE | D26: 1
C28: SALARIO MINIMO | D28: 123.22
C30: CLASIFICACION DE LA ESTRUCTURA DE MANERA SUPLETORIA SEGÚN LAS NORMAS TECNICAS PARA LA CIUDAD DE MEXICO | E30: =VLOOKUP(D30,'TABLAS INIFED'!B382:C385,2,FALSE) -> 
C31: Tipo A :Son aquellas clasificadas como ligeras o medianas, de poca extensión y con excavaciones
C32: Tipo A.1 :Son aquellas estructuras del tipo A que no satisfacen las Condiciones de Regularidad de las
C33: Tipo B :Son aquellas clasificadas como pesadas, extensas o con excavaciones profundas.
C34: Tipo B.1 :Son aquellas estructuras del tipo B que no satisfacen las Condiciones de Regularidad de las
C35: CLASIFICACION DE INSTALACION DE AIRES ACONDICIONADOS | E35: =IF(D35=""," ",VLOOKUP(D35,H36:I38,2,FALSE)) -> 
C36: Tipo A : Sistemas que proporcionan únicamente ventilación mecánica para inyección y/o extracción. | H36: Tipo A: | I36: 1
C37: Tipo B : Sistemas que proporcionan enfriamiento de aire para climas templados o durante el verano. | H37: Tipo B: | I37: 1.33
C38: Tipo C : Sistemas que requieren de refrigeración y/o calefacción, humidificación y filtración y que contarán con un balance térmico. | H38: Tipo C: | I38: 4
C40: DURACION DE LA OBRA EN DIAS
C41: NUMERO DE CORRESPONSABLES
C43: Estudios Preliminares (Validacion de Factibilidad Físico Documental del Plantel)
C44: Condiciones del sitio. Investigación de datos técnicos y disposiciones legales en la localidad Formula: H=CO*FS*FE*0.03 | D44: 0.03 | F44: =+IF(D16=""," ",$D$20*$D$25*$D$113*D44) ->  | H44: =+$D$21*$D$25*$D$113*D44 -> 
C45: Reporte de visita | F45: =+IF(D16=""," ",$D$20*$D$25*$D$113*D45) ->  | H45: =+$D$21*$D$25*$D$113*D45 -> 
C46: Expediente fotográfico | F46: =+IF(D16=""," ",$D$20*$D$25*$D$113*D46) -> 
C47: Total Estudios preliminares | D47: =SUM(D44:D46) -> 0.03 | F47: =SUM(F44:F46) -> 0 | H47: =SUM(H44:H46) -> 
C49: Levantamiento Topografico
C50: Levantamiento topográfico Fórmula : H=(FC)($/m2)(CR)(Ft)
C51: H= Honorarios
C52: $/m2= Costo por metro cuadrado | D52: =+D19 -> 
C53: FC= Factor de cálculo
C54: Cr= Cantidad de días o unidades requeridas para el desarrollo de las actividades
C55: Ff= Factor de servicios foráneos | D55: Ff= | E55: Cr=
C56: Trabajo de Campo ( Día brigada) | D56: 0.4956 | F56: =+IF(E56=""," ",$D$19*$D$24*E56*D56) -> 
C57: Trabajo de gabinete ( Día gabinete) | D57: 0.5097 | F57: =+IF(E57=""," ",$D$19*$D$24*E57*D57) -> 
C58: Elaboración de planos) | D58: 0.2946 | F58: =+IF(E58=""," ",$D$19*$D$24*E58*D58) -> 
C60: SI LA SUPERFICIE DEL TERRENO ES IGUAL, MENOR O CON UN EXCEDENTE NO MAYOR AL 25% AL AREA CONSTRUIDA NO SE COBRARAR POR LEVANTAMIENTO DE TERRENO, SI ES MAYOR SE COBRARA LA DIFERENCIA DE LA SUPERFICIE
C61: Levantamiento topográfico TERRENO Fórmula : H=(FC)($/m2)(CR)(Ft) | D61: =+IF((D65)>0,D63-D62," ") ->  | E61: =+IF(D61=""," ","M2") -> M2 | F61: =IF(D61=" "," ",+'TABLAS TOPOGRAFIA'!G10) -> 
C62: Area de construccion | D62: =+D16 -> 0 | E62: M2
C63: Superficie de Terreno | D63: =+D15 -> 0 | E63: M2
D64: =+D62*1.25 -> 0
D65: =+D63-D64 -> 0
C66: Georeferenciacion del levantamiento topografico | D66: 0.01 | F66: =+IF(E66="",0,D66*D21) -> 0
C67: Total Levantamiento Topografico | F67: =IF(D16="",0,+F66+F61+F58+F57+F56) -> 0
C69: Elaboracion de Planos Aquitectónicos
C70: Elaboracion de Planos Aquitectónicos Fórmula : H=(CO)(FS)(FE)(FA) | D70: 0.06 | F70: =+IF(D16=""," ",$D$20*$D$25*$D$113*D70) -> 
C71: Planta Azoteas de Conjunto | F71: =+IF(D16=""," ",$D$20*$D$25*$D$113*D71) -> 
C72: Plantas arquitectónicas (tabla de edificios y área de espacios)
C73: Plantas arquitectónicas (Análisis y detalles de cancelería) | F73: =+IF(D16=""," ",$D$20*$D$25*$D$113*D73) -> 
C74: secciones Aquitectónicas (Cortes) | F74: =+IF(D16=""," ",$D$20*$D$25*$D$113*D74) -> 
C75: Fachadas Arquitectónicas (todas las existente) | D75: 0.03 | F75: =+IF(D16=""," ",$D$20*$D$25*$D$113*D75) -> 
C76: Total Elaboracion de Planos Aquitectónicos | F76: =SUM(F70:F75) -> 0
C78: Dicatamen Estructural y de Instalaciones electricas
C79: Dictamen Estructural Fórmula= (CO)(FS)(FE)(FA)(G) | D79: (FA) | E79: (G) TIPO
C80: Análisis Estructural | D80: 0.12 | E80: =+IF(D16=""," ",E30) ->  | F80: =+IF(D16=""," ",$D$20*$D$25*$D$114*D80) ->  | J80: H= Honorarios.
C81: Criterios generales de estructuración | D81: 0.12 | E81: =+IF(D16=""," ",E30) ->  | F81: =+IF(D16=""," ",$D$20*$D$25*$D$114*D81) ->  | J81: CO= Costo estimado de la obra igual a (m2 de proyecto) ($/m2 de construcción).
C82: Dictamen de Instalaciones Eléctricas Fórmula= H = (CO)(FS)(FE)(FA) | J82: FS= Factor de superficie.
C83: Análisis de Instalaciones Eléctricas | D83: 0.14 | F83: =+IF(D16=""," ",$D$20*$D$25*$D$115*D83) ->  | J83: FE= Factor por especialidad.
C84: Dictamen de Instalaciones Eléctricas | D84: 0.14 | F84: =+IF(D16=""," ",$D$20*$D$25*$D$115*D84) ->  | J84: FA= Factor de alcance.
C86: Total dictamen estructural y de Instalaciones Electricas | F86: =SUM(F80:F85) -> 0 | J86: checar Instalaciones hidrosanitarias y especiales
C88: Integración de Expediente
C89: Carpeta Documental
C90: Impresión e integracion de dictamenes | D90: 0.0003 | F90: =+IF(D16=""," ",D90*D20) -> 
C93: Total Integración de Expediente | F93: =SUM(F89:F92) -> 0
C96: Dctamen de validacion de la Norma INIFED
C97: =+C47 -> Total Estudios preliminares | F97: =+F47 -> 0
C98: =+C67 -> Total Levantamiento Topografico | F98: =+F67 -> 0
C99: =+C76 -> Total Elaboracion de Planos Aquitectónicos | F99: =+F76 -> 0
C100: =+C86 -> Total dictamen estructural y de Instalaciones Electricas | F100: =+F86 -> 0
C101: =+C93 -> Total Integración de Expediente | F101: =+F93 -> 0
C103: GRAN TOTAL Dictamen de validacion de la Norma INIFED | F103: =+F93+F86+F76+F67+F47 -> 0
C104: nota: EN CASO DE REQUERIRSE GESTIONES EXTRAS A LAS AQUÍ INDICADAS SE COBRARAN POR SEPARADO Y DE COMUN ACUERDO ENTRE LAS PARTES
C111: 2.1. PROYECTO EJECUTIVO. | D111: FACTOR DE ESPECIALIDAD
C112: Alcance del Proyecto: | D112: FE
C113: 2.1.1. Proyecto Arquitectónico. | D113: 0.589
C114: 2.1.2. Proyecto Estructural. | D114: 0.1304
C115: 2.1.3. Proyecto de Instalaciones Eléctricas. | D115: 0.1063
C116: 2.1.4. Ingeniería Hidráulica y Sanitaria. | D116: 0.0512
C117: 2.1.5. Proyecto de Instalaciones Contra Incendios. | D117: 0.0355
C118: 2.1.6. Proyecto de Instalaciones de Gases. | D118: 0.0128
C119: 2.1.7. Proyecto de Aire Acondicionado. | D119: 0.0236
C120: 2.1.8. Proyecto de Telecomunicaciones | D120: 0.0512
C121: TOTAL FACTOR | D121: =SUM(D113:D120) -> 1
C123: 2.1.1. Proyecto Arquitectónico.
C124: H=(CO)(FS)(FE)(FA)
C125: CO= Costo estimado de la obra. | D125: =+D20 -> 
C126: FS= Factor de superficie. | D126: =+D25 -> 
C127: FE= Factor de especialidad. | D127: =+D113 -> 0.589
C128: FA= Factor de alcance. | D128: =+D26 -> 1
C130: HONORARIOS | D130: =+D125*D126*D127*D128 ->  | E130: =+D130/D20 -> 
C133: 2.1.2. Proyecto Estructural.
C135: Estructura Tipo | D135: TIPO A
C136: Fórmula: | H136: Tipo A | I136: 1
C137: CO= Costo estimado de la obra. | D137: =+$D$20 ->  | H137: Tipo A.1 | I137: 1.2
C138: FS= Factor de superficie. | D138: =+$D$25 ->  | H138: Tipo B | I138: 1.35
C139: FE= Factor de especialidad. | D139: =+$D$114 -> 0.1304 | H139: Tipo B.1 | I139: 1.5
C140: FA= Factor de alcance. | D140: =+$D$26 -> 1
C141: Tipo A | D141: =+IF(C141="Tipo A",1,IF(C141="Tipo A.1",1.2,IF(C141="Tipo B",1.35,IF(C141="Tipo B.1",1.5," ")))) -> 1
C142: H=(CO)(FS)(FE)(FA)(G)
C143: HONORARIOS POR PROYECTO ESTRUCTURAL= | D143: =+D137*D138*D139*D140*D141 ->  | E143: =+D143/D137 -> 
C145: 2.1.3. Proyecto de Instalaciones Eléctricas.
C146: H=(CO)(FS)(FE)(FA | D146: =+D147*D148*D149*D150 -> 
C147: CO= Costo estimado de la obra. | D147: =+$D$20 -> 
C148: FS= Factor de superficie. | D148: =+$D$25 -> 
C149: FE= Factor de especialidad. | D149: =+D115 -> 0.1063
C150: FA= Factor de alcance. | D150: =+$D$26 -> 1
C152: HONORARIOS POR PROYECTO INSTALACIONES ELECTRICAS | D152: =+D146 ->  | E152: =+D152/D147 -> 
C154: 2.1.4. Proyecto de Instalaciones Hidrosanitarias.
C155: H=(CO)(FS)(FE)(FA) | D155: =+D156*D157*D158*D159 -> 
C156: CO= Costo estimado de la obra. | D156: =+$D$20 -> 
C157: FS= Factor de superficie. | D157: =+$D$25 -> 
C158: FE= Factor de especialidad. | D158: =+D116 -> 0.0512
C159: FA= Factor de alcance. | D159: =+$D$26 -> 1
C161: HONORARIOS POR PROYECTO INSTALACIONES HIDROSANITARIAS | D161: =+D155 ->  | E161: =+D161/D156 -> 
C163: 2.1.5. Proyecto de Instalaciones Contra Incendios.
C164: H=(CO)(FS)(FE)(FA) | D164: =+D165*D166*D167*D168 -> 
C165: CO= Costo estimado de la obra. | D165: =+$D$20 -> 
C166: FS= Factor de superficie. | D166: =+$D$25 -> 
C167: FE= Factor de especialidad. | D167: =+D117 -> 0.0355
C168: FA= Factor de alcance. | D168: =+$D$26 -> 1
C170: HONORARIOS POR PROYECTO INSTALACIONES CONTRAINCENDIOS | D170: =+D164 ->  | E170: =+D170/D165 -> 
C172: 2.1.5. Proyecto de Instalaciones gas
C173: H=(CO)(FS)(FE)(FA) | D173: =+D174*D175*D176*D177 -> 
C174: CO= Costo estimado de la obra. | D174: =+$D$20 -> 
C175: FS= Factor de superficie. | D175: =+$D$25 -> 
C176: FE= Factor de especialidad. | D176: =+D118 -> 0.0128
C177: FA= Factor de alcance. | D177: =+$D$26 -> 1
C179: HONORARIOS POR PROYECTO INSTALACIONES GAS | D179: =+D173 ->  | E179: =+D179/D174 -> 
C181: 2.1.5. Proyecto de Instalaciones AIRE ACONDICIONADO | F181: Para efectos de este arancel, los proyectos de aire acondicionado se han clasificado en los siguientes tipos, de acuerdo con su grado de dificultad:
C182: H=(CO)(FS)(FE)(FA)(G) | D182: =+D183*D184*D185*D186*D187 ->  | F182: Tipo A: | H182: 1
C183: CO= Costo estimado de la obra. | D183: =+$D$20 ->  | F183: Sistemas que proporcionan únicamente ventilación mecánica para inyección y/o extracción.
C184: FS= Factor de superficie. | D184: =+$D$25 ->  | F184: Tipo B: | H184: 1.33
C185: FE= Factor de especialidad. | D185: =+D119 -> 0.0236 | F185: Sistemas que proporcionan enfriamiento de aire para climas templados o durante el verano.
C186: FA= Factor de alcance. | D186: =+$D$26 -> 1 | F186: Tipo C: | H186: 4
C187: A | D187: =+IF(C187="A",1,IF(C187="B",1.33,IF(C187="C",4," "))) -> 1 | F187: Sistemas que requieren de refrigeración y/o calefacción, humidificación y filtración y que contarán con un balance térmico.
C188: HONORARIOS POR PROYECTO INSTALACINES AIRE ACONDICIONADO | D188: =+D182 ->  | E188: =+D188/D183 -> 
C190: 2.1.5. Proyecto de Instalaciones TELECOMUNICACIONES
C191: H=(CO)(FS)(FE)(FA)(G) | D191: =+D192*D193*D194*D195 -> 
C192: CO= Costo estimado de la obra. | D192: =+$D$20 -> 
C193: FS= Factor de superficie. | D193: =+$D$25 -> 
C194: FE= Factor de especialidad. | D194: =+D120 -> 0.0512
C195: FA= Factor de alcance. | D195: =+$D$26 -> 1
C197: HONORARIOS POR PROYECTO TELECOMUNICACIONES | D197: =+D191 ->  | E197: =+D197/D192 -> 
C200: 2.1. PROYECTO EJECUTIVO.
C201: Alcance del Proyecto:
C202: 2.1.1. Proyecto Arquitectónico. | D202: =+D130 ->  | E202: =+D202/$D$20 ->  | F202: =+D202/$D$211 -> 
C203: 2.1.2. Proyecto Estructural. | D203: =+D143 ->  | E203: =+D203/$D$20 ->  | F203: =+D203/$D$211 -> 
C204: 2.1.3. Proyecto de Instalaciones Eléctricas. | D204: =+D152 -> 
C205: 2.1.4. Ingeniería Hidráulica y Sanitaria. | D205: =+D161 -> 
C206: 2.1.5. Proyecto de Instalaciones Contra Incendios. | D206: =+D170 -> 
C207: 2.1.6. Proyecto de Instalaciones de Gases. | D207: =+D179 -> 
C208: 2.1.7. Proyecto de Aire Acondicionado. | D208: =+D188 -> 
C209: 2.1.8. Proyecto de Telecomunicaciones | D209: =+D197 -> 
C211: TOTAL PROYECTO EJECUTIVO | D211: =SUM(D202:D210) ->  | E211: =SUM(E202:E210) ->  | F211: =SUM(F202:F209) -> 
C219: 2.1.9 ESTUDIOS TÉCNICOS ESPECIALIZADOS.
C221: 2.1.9.1. Guías Mecánicas.
C222: X = SUPERFICIE DE PROYECTO DE GUIA MECANICA | D222: =+D17 -> 0 | E222: M2 | F222: 104
C223: $/M2 = COSTO POR M2 DE CONSTRUCCION | D223: =+D19 -> 
C224: CLASIFICACION DE SUPERFICIE DE GUIA MECANICA | D224: =+IF(D222<10.1,1,IF(D222<300,2,3)) -> 1
C225: a) Superficie del proyecto de Guía Mecánica entre 10 m² y 300 m²: | D225: =+((2.711*(D231^(-0.00185*D222))*(0.0040372*D223*D222))) -> 
C226: b) Superficie del proyecto de Guía Mecánica menor a 10 m² | D226: =2.662*(0.0040372*D223*D222) -> 
C227: c) Suerficie mayor a 300 m2 | D227: =1.557*0.0040372*D223*D222 -> 
C228: 2.711 (e–.00185(X))] (0.0040372*$/m²)X
C229: 2.662(0.0040372*$/m²)X
C230: 1.557(0.0040372*$/m²)X
C231: e | D231: 2.71828182
C233: HONORARIOS POR PROYECTO GUIS MECANICAS | D233: =+IF(D224=1,D226,IF(D224=2,D225,D227)) -> 
C236: 2.1.9.2. PRESUPUESTO BASE
C237: H=(CO)(FS)(FE)(FA)(0.025) | D237: =+D238*D239*D240*D241*0.025 -> 
C238: CO= Costo estimado de la obra. | D238: =+$D$20 -> 
C239: FS= Factor de superficie. | D239: =+$D$25 -> 
C240: FE= Factor TOTAL de especialidad. | D240: =+D121 -> 1
C241: FA= Factor de alcance. | D241: =+$D$26 -> 1
C243: HONORARIOS POR PROYECTO INSTALACINES AIRE ACONDICIONADO | D243: =+D237 -> 
C246: 2.1.9.3. Levantamiento Topográfico.
C247: Costo por metro cuadrado ($/m2): | D247: =+D19 -> 
C248: Entidad Federativa: | D248: =+D22 -> 0
C249: (Ff)= | D249: =+D23 -> 
C251: Actividad Factor de Cálculo Cantidad requerida | D251: factor de calculo | E251: cantidad requerida
C252: a. Trabajo de campo.
C253: Día brigada: | D253: 0.4956 | E253: 4 | F253: =+E253*D253 -> 1.9824
C254: b. Trabajo de gabinete.
C255: Día gabinete: | D255: 0.5097 | E255: 4 | F255: =+E255*D255 -> 2.0388
C256: c. Elaboración de planos.
C257: Pieza: | D257: 0.2946 | E257: 5 | F257: =+E257*D257 -> 1.473
C259: H=(FC)($/m²)(CR)(Ff)
C260: $/m2= Costo por metro cuadrado.
C261: FC= Factor de cálculo.
C262: Cr= Cantidad requerida. Dias brigada
... 179 more rows

Sheet TABLAS TOPOGRAFIA (hidden)
B2: LEVANTAMIENTO TOPOGRAFICO | I2: LEVANTAMIENTO CONSTRUCCION | M2: LEVANTAMIENTO INSTALACIONES
B3: PLANIMETRIA | I3: M2 | M3: M2
B5: MEMORIA DE CALCULO | F5: =+IF('[1]DATOS Y PRESENTACION'!D22=""," ",'[1]DATOS Y PRESENTACION'!D22) -> 
B6: CUADRO DE CONSTRUCCION | F6: FACTOR 1 | G6: =+IF(F5="IRREGULAR",1.05,1) -> 1
B7: PLANO | F7: =+IF('[1]DATOS Y PRESENTACION'!D24=""," ",'[1]DATOS Y PRESENTACION'!D24) ->  | I7: PLANO | M7: PLANO
F8: FACTOR 2 | G8: =+IF(F7="PENDIENTE LIGERA REGULAR",1.03,IF(F7="PENDIENTE LIGERA IRREGULAR",1.06,IF(F7="PENDIENTE FUERTE REGULAR",1.09,IF(F7="PENDIENTE FUERTE IRREGULAR",1.12,1)))) -> 1
B9: SUPERFICIE EN M2 | D9: =IF($E$9=0,0,IF($E$9<200,200,IF($E$9<10000,CEILING($E$9,100),CEILING($E$9,10000)))) ->  | E9: =+IF('DATOS Y PRESENTACION'!D61="",0,'DATOS Y PRESENTACION'!D61) ->  | F9: CON FACTORES | I9: SUPERFICIE EN M2 | J9: =CEILING(K9,100) ->  | K9: =+'[1]DATOS Y PRESENTACION'!I28 ->  | M9: SUPERFICIE EN M2 | N9: =+IF(O9=0,0,IF(O9<70,70,O9)) ->  | O9: =+'[1]DATOS Y PRESENTACION'!I28 -> 
B10: SUPERFICIE EN HECTAREAS | D10: =+D9/10000 ->  | E10: =+VLOOKUP(D10,B13:E300,4,FALSE) ->  | G10: =+E10*G8*G6 -> 
B11: HAS | G11: costo por m2
A12: m2 | B12: SUPERFICIE | C12: COSTO POR HECTAREA | E12: IMPORTE | F12: AUMENTO | G12: AUMENTO | I12: SUPERFICIE | J12: COSTO POR M2 | K12: IMPORTE | M12: SUPERFICIE | N12: COSTO POR M2 | O12: IMPORTE
A13: 0 | B13: 0 | E13: 0
A14: 150 | B14: =+A14/10000 -> 0.015 | C14: =+E14/B14 -> 66666.66667 | E14: 1000 | I14: 0 | J14: 15 | K14: 0 | M14: 0 | N14: 10 | O14: 0
A15: 200 | B15: =+A15/10000 -> 0.02 | C15: =+E15/B15 -> 75000 | E15: =+E14+F15 -> 1500 | F15: 500 | G15: =+F15/100 -> 5 | I15: 70 | J15: 15 | K15: =+J15*I15 -> 1050 | M15: 70 | N15: 15 | O15: =+N15*M15 -> 1050
A16: 300 | B16: 0.03 | C16: =+E16/B16 -> 66666.66667 | E16: 2000 | F16: =+F15 -> 500 | G16: =+F16/100 -> 5 | I16: 71 | J16: 15 | K16: 1065 | M16: 71 | N16: 15 | O16: 1065
A17: 400 | B17: 0.04 | C17: 62500 | E17: 2500 | F17: =+F16 -> 500 | G17: 5 | I17: 72 | J17: 15 | K17: 1080 | M17: 72 | N17: 15 | O17: 1080
A18: 500 | B18: 0.05 | C18: 60000 | E18: 3000 | F18: =+F17 -> 500 | G18: 5 | I18: 73 | J18: 15 | K18: 1095 | M18: 73 | N18: 15 | O18: 1095
A19: 600 | B19: 0.06 | C19: 56666.66667 | E19: 3400 | F19: =+F18*0.8 -> 400 | G19: 4 | I19: 74 | J19: 15 | K19: 1110 | M19: 74 | N19: 15 | O19: 1110
A20: 700 | B20: 0.07 | C20: 54285.71429 | E20: 3800 | F20: =+F19 -> 400 | G20: 4 | I20: 75 | J20: 15 | K20: 1125 | M20: 75 | N20: 15 | O20: 1125
A21: 800 | B21: 0.08 | C21: 52500 | E21: 4200 | F21: =+F20 -> 400 | G21: 4 | I21: 76 | J21: 15 | K21: 1140 | M21: 76 | N21: 15 | O21: 1140
A22: 900 | B22: 0.09 | C22: 51111.11111 | E22: 4600 | F22: =+F21 -> 400 | G22: 4 | I22: 77 | J22: 15 | K22: 1155 | M22: 77 | N22: 15 | O22: 1155
A23: 1000 | B23: 0.1 | C23: 50000 | E23: 5000 | F23: =+F22 -> 400 | G23: 4 | I23: 78 | J23: 15 | K23: 1170 | M23: 78 | N23: 15 | O23: 1170
A24: 1100 | B24: 0.11 | C24: 46590.90909 | E24: 5125 | F24: =+F23*0.3125 -> 125 | G24: 1.25 | I24: 79 | J24: 15 | K24: 1185 | M24: 79 | N24: 15 | O24: 1185
A25: 1200 | B25: 0.12 | C25: 43750 | E25: 5250 | F25: =+F24 -> 125 | G25: 1.25 | I25: 80 | J25: 15 | K25: 1200 | M25: 80 | N25: 15 | O25: 1200
A26: 1300 | B26: 0.13 | C26: 41346.15385 | E26: 5375 | F26: =+F25 -> 125 | G26: 1.25 | I26: 81 | J26: 15 | K26: 1215 | M26: 81 | N26: 15 | O26: 1215
A27: 1400 | B27: 0.14 | C27: 39285.71429 | E27: 5500 | F27: 125 | G27: 1.25 | I27: 82 | J27: 15 | K27: 1230 | M27: 82 | N27: 15 | O27: 1230
A28: 1500 | B28: 0.15 | C28: 37500 | E28: 5625 | F28: 125 | G28: 1.25 | I28: 83 | J28: 15 | K28: 1245 | M28: 83 | N28: 15 | O28: 1245
A29: 1600 | B29: 0.16 | C29: 35937.5 | E29: 5750 | F29: 125 | G29: 1.25 | I29: 84 | J29: 15 | K29: 1260 | M29: 84 | N29: 15 | O29: 1260
A30: 1700 | B30: 0.17 | C30: 34558.82353 | E30: 5875 | F30: 125 | G30: 1.25 | I30: 85 | J30: 15 | K30: 1275 | M30: 85 | N30: 15 | O30: 1275
A31: 1800 | B31: 0.18 | C31: 33333.33333 | E31: 6000 | F31: 125 | G31: =+F31/100 -> 1.25 | I31: 86 | J31: 15 | K31: 1290 | M31: 86 | N31: 15 | O31: 1290
A32: 1900 | B32: 0.19 | C32: 32236.84211 | E32: 6125 | F32: 125 | G32: 1.25 | I32: 87 | J32: 15 | K32: 1305 | M32: 87 | N32: 15 | O32: 1305
A33: 2000 | B33: 0.2 | C33: 31250 | E33: 6250 | F33: 125 | G33: 1.25 | I33: 88 | J33: 15 | K33: 1320 | M33: 88 | N33: 15 | O33: 1320
A34: 2100 | B34: 0.21 | C34: 30000 | E34: 6300 | F34: =+F33*0.4 -> 50 | G34: 0.5 | I34: 89 | J34: 15 | K34: 1335 | M34: 89 | N34: 15 | O34: 1335
A35: 2200 | B35: 0.22 | C35: 28863.63636 | E35: 6350 | F35: =+F34 -> 50 | G35: 0.5 | I35: 90 | J35: 15 | K35: 1350 | M35: 90 | N35: 15 | O35: 1350
A36: 2300 | B36: 0.23 | C36: 27826.08696 | E36: 6400 | F36: =+F35 -> 50 | G36: 0.5 | I36: 91 | J36: 15 | K36: 1365 | M36: 91 | N36: 15 | O36: 1365
A37: 2400 | B37: 0.24 | C37: 26875 | E37: 6450 | F37: 50 | G37: 0.5 | I37: 92 | J37: 15 | K37: 1380 | M37: 92 | N37: 15 | O37: 1380
A38: 2500 | B38: 0.25 | C38: 26000 | E38: 6500 | F38: 50 | G38: 0.5 | I38: 93 | J38: 15 | K38: 1395 | M38: 93 | N38: 15 | O38: 1395
A39: 2600 | B39: 0.26 | C39: 25192.30769 | E39: 6550 | F39: 50 | G39: 0.5 | I39: 94 | J39: 15 | K39: 1410 | M39: 94 | N39: 15 | O39: 1410
A40: 2700 | B40: 0.27 | C40: 24444.44444 | E40: 6600 | F40: 50 | G40: 0.5 | I40: 95 | J40: 15 | K40: 1425 | M40: 95 | N40: 15 | O40: 1425
A41: 2800 | B41: 0.28 | C41: 23750 | E41: 6650 | F41: 50 | G41: 0.5 | I41: 96 | J41: 15 | K41: 1440 | M41: 96 | N41: 15 | O41: 1440
A42: 2900 | B42: 0.29 | C42: 23103.44828 | E42: 6700 | F42: 50 | G42: 0.5 | I42: 97 | J42: 15 | K42: 1455 | M42: 97 | N42: 15 | O42: 1455
A43: 3000 | B43: 0.3 | C43: 22500 | E43: 6750 | F43: 50 | G43: 0.5 | I43: 98 | J43: 15 | K43: 1470 | M43: 98 | N43: 15 | O43: 1470
A44: 3100 | B44: 0.31 | C44: 21895.16129 | E44: 6787.5 | F44: =+F43*0.75 -> 37.5 | G44: 0.375 | I44: 99 | J44: 15 | K44: 1485 | M44: 99 | N44: 15 | O44: 1485
A45: 3200 | B45: 0.32 | C45: 21328.125 | E45: 6825 | F45: =+F44 -> 37.5 | G45: 0.375 | I45: 100 | J45: 15 | K45: 1500 | M45: 100 | N45: 15 | O45: 1500
A46: 3300 | B46: 0.33 | C46: 20795.45455 | E46: 6862.5 | F46: =+F45 -> 37.5 | G46: 0.375 | I46: 101 | J46: 15 | K46: 1515 | M46: 101 | N46: 15 | O46: 1515
A47: 3400 | B47: 0.34 | C47: 20294.11765 | E47: 6900 | F47: 37.5 | G47: 0.375 | I47: 102 | J47: 15 | K47: 1530 | M47: 102 | N47: 15 | O47: 1530
A48: 3500 | B48: 0.35 | C48: 19821.42857 | E48: 6937.5 | F48: 37.5 | G48: 0.375 | I48: 103 | J48: 15 | K48: 1545 | M48: 103 | N48: 15 | O48: 1545
A49: 3600 | B49: 0.36 | C49: 19375 | E49: 6975 | F49: 37.5 | G49: 0.375 | I49: 104 | J49: 15 | K49: 1560 | M49: 104 | N49: 15 | O49: 1560
A50: 3700 | B50: 0.37 | C50: 18952.7027 | E50: 7012.5 | F50: 37.5 | G50: 0.375 | I50: 105 | J50: 15 | K50: 1575 | M50: 105 | N50: 15 | O50: 1575
A51: 3800 | B51: 0.38 | C51: 18552.63158 | E51: 7050 | F51: 37.5 | G51: 0.375 | I51: 106 | J51: 15 | K51: 1590 | M51: 106 | N51: 15 | O51: 1590
A52: 3900 | B52: 0.39 | C52: 18173.07692 | E52: 7087.5 | F52: 37.5 | G52: 0.375 | I52: 107 | J52: 15 | K52: 1605 | M52: 107 | N52: 15 | O52: 1605
A53: 4000 | B53: 0.4 | C53: 17812.5 | E53: 7125 | F53: 37.5 | G53: 0.375 | I53: 108 | J53: 15 | K53: 1620 | M53: 108 | N53: 15 | O53: 1620
A54: 4100 | B54: 0.41 | C54: 17469.5122 | E54: 7162.5 | F54: 37.5 | G54: 0.375 | I54: 109 | J54: 15 | K54: 1635 | M54: 109 | N54: 15 | O54: 1635
A55: 4200 | B55: 0.42 | C55: 17142.85714 | E55: 7200 | F55: 37.5 | G55: 0.375 | I55: 110 | J55: 15 | K55: 1650 | M55: 110 | N55: 15 | O55: 1650
A56: 4300 | B56: 0.43 | C56: 16831.39535 | E56: 7237.5 | F56: 37.5 | G56: 0.375 | I56: 111 | J56: 15 | K56: 1665 | M56: 111 | N56: 15 | O56: 1665
A57: 4400 | B57: 0.44 | C57: 16534.09091 | E57: 7275 | F57: 37.5 | G57: 0.375 | I57: 112 | J57: 15 | K57: 1680 | M57: 112 | N57: 15 | O57: 1680
A58: 4500 | B58: 0.45 | C58: 16250 | E58: 7312.5 | F58: 37.5 | G58: 0.375 | I58: 113 | J58: 15 | K58: 1695 | M58: 113 | N58: 15 | O58: 1695
A59: 4600 | B59: 0.46 | C59: 15978.26087 | E59: 7350 | F59: 37.5 | G59: 0.375 | I59: 114 | J59: 15 | K59: 1710 | M59: 114 | N59: 15 | O59: 1710
A60: 4700 | B60: 0.47 | C60: 15718.08511 | E60: 7387.5 | F60: 37.5 | G60: 0.375 | I60: 115 | J60: 15 | K60: 1725 | M60: 115 | N60: 15 | O60: 1725
A61: 4800 | B61: 0.48 | C61: 15468.75 | E61: 7425 | F61: 37.5 | G61: 0.375 | I61: 116 | J61: 15 | K61: 1740 | M61: 116 | N61: 15 | O61: 1740
A62: 4900 | B62: 0.49 | C62: 15229.59184 | E62: 7462.5 | F62: 37.5 | G62: 0.375 | I62: 117 | J62: 15 | K62: 1755 | M62: 117 | N62: 15 | O62: 1755
A63: 5000 | B63: 0.5 | C63: 15000 | E63: 7500 | F63: 37.5 | G63: 0.375 | I63: 118 | J63: 15 | K63: 1770 | M63: 118 | N63: 15 | O63: 1770
A64: 5100 | B64: 0.51 | C64: 14779.41176 | E64: 7537.5 | F64: 37.5 | G64: 0.375 | I64: 119 | J64: 15 | K64: 1785 | M64: 119 | N64: 15 | O64: 1785
A65: 5200 | B65: 0.52 | C65: 14567.30769 | E65: 7575 | F65: 37.5 | G65: 0.375 | I65: 120 | J65: 15 | K65: 1800 | M65: 120 | N65: 15 | O65: 1800
A66: 5300 | B66: 0.53 | C66: 14363.20755 | E66: 7612.5 | F66: 37.5 | G66: 0.375 | I66: 121 | J66: 15 | K66: 1815 | M66: 121 | N66: 15 | O66: 1815
A67: 5400 | B67: 0.54 | C67: 14166.66667 | E67: 7650 | F67: 37.5 | G67: 0.375 | I67: 122 | J67: 15 | K67: 1830 | M67: 122 | N67: 15 | O67: 1830
A68: 5500 | B68: 0.55 | C68: 13977.27273 | E68: 7687.5 | F68: 37.5 | G68: 0.375 | I68: 123 | J68: 15 | K68: 1845 | M68: 123 | N68: 15 | O68: 1845
A69: 5600 | B69: 0.56 | C69: 13794.64286 | E69: 7725 | F69: 37.5 | G69: 0.375 | I69: 124 | J69: 15 | K69: 1860 | M69: 124 | N69: 15 | O69: 1860
A70: 5700 | B70: 0.57 | C70: 13618.42105 | E70: 7762.5 | F70: 37.5 | G70: 0.375 | I70: 125 | J70: 15 | K70: 1875 | M70: 125 | N70: 15 | O70: 1875
A71: 5800 | B71: 0.58 | C71: 13448.27586 | E71: 7800 | F71: 37.5 | G71: 0.375 | I71: 126 | J71: 15 | K71: 1890 | M71: 126 | N71: 15 | O71: 1890
A72: 5900 | B72: 0.59 | C72: 13283.89831 | E72: 7837.5 | F72: 37.5 | G72: 0.375 | I72: 127 | J72: 15 | K72: 1905 | M72: 127 | N72: 15 | O72: 1905
A73: 6000 | B73: 0.6 | C73: 13125 | E73: 7875 | F73: 37.5 | G73: 0.375 | I73: 128 | J73: 15 | K73: 1920 | M73: 128 | N73: 15 | O73: 1920
A74: 6100 | B74: 0.61 | C74: 12971.31148 | E74: 7912.5 | F74: 37.5 | G74: 0.375 | I74: 129 | J74: 15 | K74: 1935 | M74: 129 | N74: 15 | O74: 1935
A75: 6200 | B75: 0.62 | C75: 12822.58065 | E75: 7950 | F75: 37.5 | G75: 0.375 | I75: 130 | J75: 15 | K75: 1950 | M75: 130 | N75: 15 | O75: 1950
A76: 6300 | B76: 0.63 | C76: 12678.57143 | E76: 7987.5 | F76: 37.5 | G76: 0.375 | I76: 131 | J76: 15 | K76: 1965 | M76: 131 | N76: 15 | O76: 1965
A77: 6400 | B77: 0.64 | C77: 12539.0625 | E77: 8025 | F77: 37.5 | G77: 0.375 | I77: 132 | J77: 15 | K77: 1980 | M77: 132 | N77: 15 | O77: 1980
A78: 6500 | B78: 0.65 | C78: 12403.84615 | E78: 8062.5 | F78: 37.5 | G78: 0.375 | I78: 133 | J78: 15 | K78: 1995 | M78: 133 | N78: 15 | O78: 1995
A79: 6600 | B79: =+A79/10000 -> 0.66 | C79: 12272.72727 | E79: =+E78+F79 -> 8100 | F79: 37.5 | G79: 0.375 | I79: 134 | J79: 15 | K79: =+J79*I79 -> 2010 | M79: 134 | N79: 15 | O79: =+N79*M79 -> 2010
A80: 6700 | B80: 0.67 | C80: =+E80/B80 -> 12145.52239 | E80: 8137.5 | F80: 37.5 | G80: =+F80/100 -> 0.375 | I80: 135 | J80: 15 | K80: 2025 | M80: 135 | N80: 15 | O80: 2025
A81: 6800 | B81: 0.68 | C81: 12022.05882 | E81: 8175 | F81: 37.5 | G81: 0.375 | I81: 136 | J81: 15 | K81: 2040 | M81: 136 | N81: 15 | O81: 2040
A82: 6900 | B82: 0.69 | C82: 11902.17391 | E82: 8212.5 | F82: 37.5 | G82: 0.375 | I82: 137 | J82: 15 | K82: 2055 | M82: 137 | N82: 15 | O82: 2055
A83: 7000 | B83: 0.7 | C83: 11785.71429 | E83: 8250 | F83: 37.5 | G83: 0.375 | I83: 138 | J83: 15 | K83: 2070 | M83: 138 | N83: 15 | O83: 2070
A84: 7100 | B84: 0.71 | C84: 11672.53521 | E84: 8287.5 | F84: 37.5 | G84: 0.375 | I84: 139 | J84: 15 | K84: 2085 | M84: 139 | N84: 15 | O84: 2085
A85: 7200 | B85: 0.72 | C85: 11562.5 | E85: 8325 | F85: 37.5 | G85: 0.375 | I85: 140 | J85: 15 | K85: 2100 | M85: 140 | N85: 15 | O85: 2100
A86: 7300 | B86: 0.73 | C86: 11455.47945 | E86: 8362.5 | F86: 37.5 | G86: 0.375 | I86: 141 | J86: 15 | K86: 2115 | M86: 141 | N86: 15 | O86: 2115
A87: 7400 | B87: 0.74 | C87: 11351.35135 | E87: 8400 | F87: 37.5 | G87: 0.375 | I87: 142 | J87: 15 | K87: 2130 | M87: 142 | N87: 15 | O87: 2130
A88: 7500 | B88: 0.75 | C88: 11250 | E88: 8437.5 | F88: 37.5 | G88: 0.375 | I88: 143 | J88: 15 | K88: 2145 | M88: 143 | N88: 15 | O88: 2145
A89: 7600 | B89: 0.76 | C89: 11151.31579 | E89: 8475 | F89: 37.5 | G89: 0.375 | I89: 144 | J89: 15 | K89: 2160 | M89: 144 | N89: 15 | O89: 2160
A90: 7700 | B90: 0.77 | C90: 11055.19481 | E90: 8512.5 | F90: 37.5 | G90: 0.375 | I90: 145 | J90: 15 | K90: 2175 | M90: 145 | N90: 15 | O90: 2175
A91: 7800 | B91: 0.78 | C91: 10961.53846 | E91: 8550 | F91: 37.5 | G91: 0.375 | I91: 146 | J91: 15 | K91: 2190 | M91: 146 | N91: 15 | O91: 2190
A92: 7900 | B92: 0.79 | C92: 10870.25316 | E92: 8587.5 | F92: 37.5 | G92: 0.375 | I92: 147 | J92: 15 | K92: 2205 | M92: 147 | N92: 15 | O92: 2205
A93: 8000 | B93: 0.8 | C93: 10781.25 | E93: 8625 | F93: 37.5 | G93: 0.375 | I93: 148 | J93: 15 | K93: 2220 | M93: 148 | N93: 15 | O93: 2220
A94: 8100 | B94: 0.81 | C94: 10694.44444 | E94: 8662.5 | F94: 37.5 | G94: 0.375 | I94: 149 | J94: 15 | K94: 2235 | M94: 149 | N94: 15 | O94: 2235
A95: 8200 | B95: 0.82 | C95: 10609.7561 | E95: 8700 | F95: 37.5 | G95: 0.375 | I95: 150 | J95: 15 | K95: 2250 | M95: 150 | N95: 15 | O95: 2250
A96: 8300 | B96: 0.83 | C96: 10527.10843 | E96: 8737.5 | F96: 37.5 | G96: 0.375 | I96: 151 | J96: 15 | K96: 2265 | M96: 151 | N96: 15 | O96: 2265
A97: 8400 | B97: 0.84 | C97: 10446.42857 | E97: 8775 | F97: 37.5 | G97: 0.375 | I97: 152 | J97: 15 | K97: 2280 | M97: 152 | N97: 15 | O97: 2280
A98: 8500 | B98: 0.85 | C98: 10367.64706 | E98: 8812.5 | F98: 37.5 | G98: 0.375 | I98: 153 | J98: 15 | K98: 2295 | M98: 153 | N98: 15 | O98: 2295
A99: 8600 | B99: 0.86 | C99: 10290.69767 | E99: 8850 | F99: 37.5 | G99: 0.375 | I99: 154 | J99: 15 | K99: 2310 | M99: 154 | N99: 15 | O99: 2310
A100: 8700 | B100: 0.87 | C100: 10215.51724 | E100: 8887.5 | F100: 37.5 | G100: 0.375 | I100: 155 | J100: 15 | K100: 2325 | M100: 155 | N100: 15 | O100: 2325
A101: 8800 | B101: 0.88 | C101: 10142.04545 | E101: 8925 | F101: 37.5 | G101: 0.375 | I101: 156 | J101: 15 | K101: 2340 | M101: 156 | N101: 15 | O101: 2340
A102: 8900 | B102: 0.89 | C102: 10070.22472 | E102: 8962.5 | F102: 37.5 | G102: 0.375 | I102: 157 | J102: 15 | K102: 2355 | M102: 157 | N102: 15 | O102: 2355
A103: 9000 | B103: 0.9 | C103: 10000 | E103: 9000 | F103: 37.5 | G103: 0.375 | I103: 158 | J103: 15 | K103: 2370 | M103: 158 | N103: 15 | O103: 2370
A104: 9100 | B104: 0.91 | C104: 9931.318681 | E104: 9037.5 | F104: 37.5 | G104: 0.375 | I104: 159 | J104: 15 | K104: 2385 | M104: 159 | N104: 15 | O104: 2385
A105: 9200 | B105: 0.92 | C105: 9864.130435 | E105: 9075 | F105: 37.5 | G105: 0.375 | I105: 160 | J105: 15 | K105: 2400 | M105: 160 | N105: 15 | O105: 2400
A106: 9300 | B106: 0.93 | C106: 9798.387097 | E106: 9112.5 | F106: 37.5 | G106: 0.375 | I106: 161 | J106: 15 | K106: 2415 | M106: 161 | N106: 15 | O106: 2415
A107: 9400 | B107: 0.94 | C107: 9734.042553 | E107: 9150 | F107: 37.5 | G107: 0.375 | I107: 162 | J107: 15 | K107: 2430 | M107: 162 | N107: 15 | O107: 2430
A108: 9500 | B108: 0.95 | C108: 9671.052632 | E108: 9187.5 | F108: 37.5 | G108: 0.375 | I108: 163 | J108: 15 | K108: 2445 | M108: 163 | N108: 15 | O108: 2445
A109: 9600 | B109: 0.96 | C109: 9609.375 | E109: 9225 | F109: 37.5 | G109: 0.375 | I109: 164 | J109: 15 | K109: 2460 | M109: 164 | N109: 15 | O109: 2460
A110: 9700 | B110: 0.97 | C110: 9548.969072 | E110: 9262.5 | F110: =+F109 -> 37.5 | G110: 0.375 | I110: 165 | J110: 15 | K110: 2475 | M110: 165 | N110: 15 | O110: 2475
A111: 9800 | B111: 0.98 | C111: 9489.795918 | E111: 9300 | F111: =+F110 -> 37.5 | G111: 0.375 | I111: 166 | J111: 15 | K111: 2490 | M111: 166 | N111: 15 | O111: 2490
A112: 9900 | B112: 0.99 | C112: 9431.818182 | E112: 9337.5 | F112: =+F111 -> 37.5 | G112: 0.375 | I112: 167 | J112: 15 | K112: 2505 | M112: 167 | N112: 15 | O112: 2505
A113: 10000 | B113: 1 | C113: 9375 | E113: 9375 | F113: =+F112 -> 37.5 | G113: 0.375 | I113: 168 | J113: 15 | K113: 2520 | M113: 168 | N113: 15 | O113: 2520
A114: 20000 | B114: 2 | C114: =+E114/B114 -> 5687.5 | E114: 11375 | F114: 2000 | G114: =+F114/10000 -> 0.2 | I114: 169 | J114: 15 | K114: 2535 | M114: 169 | N114: 15 | O114: 2535
A115: 30000 | B115: 3 | E115: 13375 | F115: 2000 | G115: =+F115/10000 -> 0.2 | I115: 170 | J115: 15 | K115: 2550 | M115: 170 | N115: 15 | O115: 2550
A116: 40000 | B116: 4 | E116: 15375 | F116: 2000 | G116: 0.2 | I116: 171 | J116: 15 | K116: 2565 | M116: 171 | N116: 15 | O116: 2565
A117: 50000 | B117: 5 | E117: 17375 | F117: 2000 | G117: 0.2 | I117: 172 | J117: 15 | K117: 2580 | M117: 172 | N117: 15 | O117: 2580
A118: 60000 | B118: 6 | E118: 19375 | F118: 2000 | G118: 0.2 | I118: 173 | J118: 15 | K118: 2595 | M118: 173 | N118: 15 | O118: 2595
A119: 70000 | B119: 7 | E119: 21375 | F119: 2000 | G119: 0.2 | I119: 174 | J119: 15 | K119: 2610 | M119: 174 | N119: 15 | O119: 2610
A120: 80000 | B120: 8 | E120: 23375 | F120: 2000 | G120: 0.2 | I120: 175 | J120: 15 | K120: 2625 | M120: 175 | N120: 15 | O120: 2625
A121: 90000 | B121: 9 | E121: 25375 | F121: 2000 | G121: 0.2 | I121: 176 | J121: 15 | K121: 2640 | M121: 176 | N121: 15 | O121: 2640
A122: 100000 | B122: 10 | E122: 27375 | F122: 2000 | G122: 0.2 | I122: 177 | J122: 15 | K122: 2655 | M122: 177 | N122: 15 | O122: 2655
A123: 110000 | B123: 11 | E123: 29375 | F123: 2000 | G123: 0.2 | I123: 178 | J123: 15 | K123: 2670 | M123: 178 | N123: 15 | O123: 2670
A124: 120000 | B124: 12 | E124: 31375 | F124: 2000 | G124: 0.2 | I124: 179 | J124: 15 | K124: 2685 | M124: 179 | N124: 15 | O124: 2685
A125: 130000 | B125: 13 | E125: 33375 | F125: 2000 | G125: 0.2 | I125: 180 | J125: 15 | K125: 2700 | M125: 180 | N125: 15 | O125: 2700
A126: 140000 | B126: 14 | E126: 35375 | F126: 2000 | G126: =+F126/10000 -> 0.2 | I126: 181 | J126: 15 | K126: 2715 | M126: 181 | N126: 15 | O126: 2715
A127: 150000 | B127: 15 | E127: 37375 | F127: 2000 | G127: 0.2 | I127: 182 | J127: 15 | K127: 2730 | M127: 182 | N127: 15 | O127: 2730
A128: 160000 | B128: 16 | E128: 39375 | F128: 2000 | G128: 0.2 | I128: 183 | J128: 15 | K128: 2745 | M128: 183 | N128: 15 | O128: 2745
A129: 170000 | B129: 17 | E129: 41375 | F129: 2000 | G129: 0.2 | I129: 184 | J129: 15 | K129: 2760 | M129: 184 | N129: 15 | O129: 2760
A130: 180000 | B130: 18 | E130: 43375 | F130: 2000 | G130: 0.2 | I130: 185 | J130: 15 | K130: 2775 | M130: 185 | N130: 15 | O130: 2775
A131: 190000 | B131: 19 | E131: 45375 | F131: 2000 | G131: 0.2 | I131: 186 | J131: 15 | K131: 2790 | M131: 186 | N131: 15 | O131: 2790
A132: 200000 | B132: 20 | E132: 47375 | F132: 2000 | G132: 0.2 | I132: 187 | J132: 15 | K132: 2805 | M132: 187 | N132: 15 | O132: 2805
A133: 210000 | B133: 21 | E133: 48875 | F133: 1500 | G133: 0.15 | I133: 188 | J133: 15 | K133: 2820 | M133: 188 | N133: 15 | O133: 2820
A134: 220000 | B134: 22 | E134: 50375 | F134: 1500 | G134: 0.15 | I134: 189 | J134: 15 | K134: 2835 | M134: 189 | N134: 15 | O134: 2835
A135: 230000 | B135: 23 | E135: 51875 | F135: 1500 | G135: 0.15 | I135: 190 | J135: 15 | K135: 2850 | M135: 190 | N135: 15 | O135: 2850
A136: 240000 | B136: 24 | E136: 53375 | F136: 1500 | G136: 0.15 | I136: 191 | J136: 15 | K136: 2865 | M136: 191 | N136: 15 | O136: 2865
A137: 250000 | B137: 25 | E137: 54875 | F137: 1500 | G137: 0.15 | I137: 192 | J137: 15 | K137: 2880 | M137: 192 | N137: 15 | O137: 2880
A138: 260000 | B138: 26 | E138: 56375 | F138: 1500 | G138: 0.15 | I138: 193 | J138: 15 | K138: 2895 | M138: 193 | N138: 15 | O138: 2895
A139: 270000 | B139: 27 | E139: 57875 | F139: 1500 | G139: 0.15 | I139: 194 | J139: 15 | K139: 2910 | M139: 194 | N139: 15 | O139: 2910
A140: 280000 | B140: 28 | E140: 59375 | F140: 1500 | G140: 0.15 | I140: 195 | J140: 15 | K140: 2925 | M140: 195 | N140: 15 | O140: 2925
A141: 290000 | B141: 29 | E141: 60875 | F141: 1500 | G141: 0.15 | I141: 196 | J141: 15 | K141: 2940 | M141: 196 | N141: 15 | O141: 2940
A142: 300000 | B142: 30 | E142: 62375 | F142: 1500 | G142: 0.15 | I142: 197 | J142: 15 | K142: 2955 | M142: 197 | N142: 15 | O142: 2955
A143: 310000 | B143: 31 | E143: =+E142+F143 -> 63875 | F143: 1500 | G143: 0.15 | I143: 198 | J143: 15 | K143: =+J143*I143 -> 2970 | M143: 198 | N143: 15 | O143: =+N143*M143 -> 2970
A144: 320000 | B144: 32 | E144: 65375 | F144: 1500 | G144: 0.15 | I144: 199 | J144: 15 | K144: 2985 | M144: 199 | N144: 15 | O144: 2985
A145: 330000 | B145: 33 | E145: 66875 | F145: 1500 | G145: 0.15 | I145: 200 | J145: 15 | K145: 3000 | M145: 200 | N145: 15 | O145: 3000
A146: 340000 | B146: 34 | E146: 68375 | F146: 1500 | G146: 0.15 | I146: 201 | J146: 15 | K146: 3015 | M146: 201 | N146: 15 | O146: 3015
A147: 350000 | B147: 35 | E147: 69875 | F147: 1500 | G147: 0.15 | I147: 202 | J147: 15 | K147: 3030 | M147: 202 | N147: 15 | O147: 3030
A148: 360000 | B148: 36 | E148: 71375 | F148: 1500 | G148: 0.15 | I148: 203 | J148: 15 | K148: 3045 | M148: 203 | N148: 15 | O148: 3045
A149: 370000 | B149: 37 | E149: 72875 | F149: 1500 | G149: 0.15 | I149: 204 | J149: 15 | K149: 3060 | M149: 204 | N149: 15 | O149: 3060
A150: 380000 | B150: 38 | E150: 74375 | F150: 1500 | G150: 0.15 | I150: 205 | J150: 15 | K150: 3075 | M150: 205 | N150: 15 | O150: 3075
A151: 390000 | B151: 39 | E151: 75875 | F151: 1500 | G151: 0.15 | I151: 206 | J151: 15 | K151: 3090 | M151: 206 | N151: 15 | O151: 3090
A152: 400000 | B152: 40 | E152: 77375 | F152: 1500 | G152: 0.15 | I152: 207 | J152: 15 | K152: 3105 | M152: 207 | N152: 15 | O152: 3105
A153: 410000 | B153: 41 | E153: 78875 | F153: 1500 | G153: 0.15 | I153: 208 | J153: 15 | K153: 3120 | M153: 208 | N153: 15 | O153: 3120
A154: 420000 | B154: 42 | E154: 80375 | F154: 1500 | G154: 0.15 | I154: 209 | J154: 15 | K154: 3135 | M154: 209 | N154: 15 | O154: 3135
A155: 430000 | B155: 43 | E155: 81875 | F155: 1500 | G155: 0.15 | I155: 210 | J155: 15 | K155: 3150 | M155: 210 | N155: 15 | O155: 3150
A156: 440000 | B156: 44 | E156: 83375 | F156: 1500 | G156: 0.15 | I156: 211 | J156: 15 | K156: 3165 | M156: 211 | N156: 15 | O156: 3165
A157: 450000 | B157: 45 | E157: 84875 | F157: 1500 | G157: 0.15 | I157: 212 | J157: 15 | K157: 3180 | M157: 212 | N157: 15 | O157: 3180
A158: 460000 | B158: 46 | E158: 86375 | F158: 1500 | G158: 0.15 | I158: 213 | J158: 15 | K158: 3195 | M158: 213 | N158: 15 | O158: 3195
A159: 470000 | B159: 47 | E159: 87875 | F159: 1500 | G159: 0.15 | I159: 214 | J159: 15 | K159: 3210 | M159: 214 | N159: 15 | O159: 3210
A160: 480000 | B160: 48 | E160: 89375 | F160: 1500 | G160: 0.15 | I160: 215 | J160: 15 | K160: 3225 | M160: 215 | N160: 15 | O160: 3225
A161: 490000 | B161: 49 | E161: 90875 | F161: 1500 | G161: 0.15 | I161: 216 | J161: 15 | K161: 3240 | M161: 216 | N161: 15 | O161: 3240
A162: 500000 | B162: 50 | E162: 92375 | F162: 1500 | G162: 0.15 | I162: 217 | J162: 15 | K162: 3255 | M162: 217 | N162: 15 | O162: 3255
A163: 510000 | B163: 51 | E163: 93375 | F163: 1000 | G163: 0.1 | I163: 218 | J163: 15 | K163: 3270 | M163: 218 | N163: 15 | O163: 3270
A164: 520000 | B164: 52 | E164: 94375 | F164: 1000 | G164: 0.1 | I164: 219 | J164: 15 | K164: 3285 | M164: 219 | N164: 15 | O164: 3285
A165: 530000 | B165: 53 | E165: 95375 | F165: 1000 | G165: 0.1 | I165: 220 | J165: 15 | K165: 3300 | M165: 220 | N165: 15 | O165: 3300
A166: 540000 | B166: 54 | E166: 96375 | F166: 1000 | G166: 0.1 | I166: 221 | J166: 15 | K166: 3315 | M166: 221 | N166: 15 | O166: 3315
A167: 550000 | B167: 55 | E167: 97375 | F167: 1000 | G167: 0.1 | I167: 222 | J167: 15 | K167: 3330 | M167: 222 | N167: 15 | O167: 3330
A168: 560000 | B168: 56 | E168: 98375 | F168: 1000 | G168: 0.1 | I168: 223 | J168: 15 | K168: 3345 | M168: 223 | N168: 15 | O168: 3345
A169: 570000 | B169: 57 | E169: 99375 | F169: 1000 | G169: 0.1 | I169: 224 | J169: 15 | K169: 3360 | M169: 224 | N169: 15 | O169: 3360
A170: 580000 | B170: 58 | E170: 100375 | F170: 1000 | G170: 0.1 | I170: 225 | J170: 15 | K170: 3375 | M170: 225 | N170: 15 | O170: 3375
A171: 590000 | B171: 59 | E171: 101375 | F171: 1000 | G171: 0.1 | I171: 226 | J171: 15 | K171: 3390 | M171: 226 | N171: 15 | O171: 3390
A172: 600000 | B172: 60 | E172: 102375 | F172: 1000 | G172: 0.1 | I172: 227 | J172: 15 | K172: 3405 | M172: 227 | N172: 15 | O172: 3405
A173: 610000 | B173: 61 | E173: 103375 | F173: 1000 | G173: 0.1 | I173: 228 | J173: 15 | K173: 3420 | M173: 228 | N173: 15 | O173: 3420
A174: 620000 | B174: 62 | E174: 104375 | F174: 1000 | G174: 0.1 | I174: 229 | J174: 15 | K174: 3435 | M174: 229 | N174: 15 | O174: 3435
A175: 630000 | B175: 63 | E175: 105375 | F175: 1000 | G175: 0.1 | I175: 230 | J175: 15 | K175: 3450 | M175: 230 | N175: 15 | O175: 3450
A176: 640000 | B176: 64 | E176: 106375 | F176: 1000 | G176: 0.1 | I176: 231 | J176: 15 | K176: 3465 | M176: 231 | N176: 15 | O176: 3465
A177: 650000 | B177: 65 | E177: 107375 | F177: 1000 | G177: 0.1 | I177: 232 | J177: 15 | K177: 3480 | M177: 232 | N177: 15 | O177: 3480
A178: 660000 | B178: 66 | E178: 108375 | F178: 1000 | G178: 0.1 | I178: 233 | J178: 15 | K178: 3495 | M178: 233 | N178: 15 | O178: 3495
A179: 670000 | B179: 67 | E179: 109375 | F179: 1000 | G179: =+F179/10000 -> 0.1 | I179: 234 | J179: 15 | K179: 3510 | M179: 234 | N179: 15 | O179: 3510
A180: 680000 | B180: 68 | E180: 110375 | F180: 1000 | G180: 0.1 | I180: 235 | J180: 15 | K180: 3525 | M180: 235 | N180: 15 | O180: 3525
A181: 690000 | B181: 69 | E181: 111375 | F181: 1000 | G181: 0.1 | I181: 236 | J181: 15 | K181: 3540 | M181: 236 | N181: 15 | O181: 3540
A182: 700000 | B182: 70 | E182: 112375 | F182: 1000 | G182: 0.1 | I182: 237 | J182: 15 | K182: 3555 | M182: 237 | N182: 15 | O182: 3555
A183: 710000 | B183: 71 | E183: 113375 | F183: 1000 | G183: 0.1 | I183: 238 | J183: 15 | K183: 3570 | M183: 238 | N183: 15 | O183: 3570
A184: 720000 | B184: 72 | E184: 114375 | F184: 1000 | G184: 0.1 | I184: 239 | J184: 15 | K184: 3585 | M184: 239 | N184: 15 | O184: 3585
A185: 730000 | B185: 73 | E185: 115375 | F185: 1000 | G185: 0.1 | I185: 240 | J185: 15 | K185: 3600 | M185: 240 | N185: 15 | O185: 3600
A186: 740000 | B186: 74 | E186: 116375 | F186: 1000 | G186: 0.1 | I186: 241 | J186: 15 | K186: 3615 | M186: 241 | N186: 15 | O186: 3615
A187: 750000 | B187: 75 | E187: 117375 | F187: 1000 | G187: 0.1 | I187: 242 | J187: 15 | K187: 3630 | M187: 242 | N187: 15 | O187: 3630
A188: 760000 | B188: 76 | E188: 118375 | F188: 1000 | G188: 0.1 | I188: 243 | J188: 15 | K188: 3645 | M188: 243 | N188: 15 | O188: 3645
A189: 770000 | B189: 77 | E189: 119375 | F189: 1000 | G189: 0.1 | I189: 244 | J189: 15 | K189: 3660 | M189: 244 | N189: 15 | O189: 3660
A190: 780000 | B190: 78 | E190: 120375 | F190: 1000 | G190: 0.1 | I190: 245 | J190: 15 | K190: 3675 | M190: 245 | N190: 15 | O190: 3675
A191: 790000 | B191: 79 | E191: 121375 | F191: 1000 | G191: 0.1 | I191: 246 | J191: 15 | K191: 3690 | M191: 246 | N191: 15 | O191: 3690
A192: 800000 | B192: 80 | E192: 122375 | F192: 1000 | G192: 0.1 | I192: 247 | J192: 15 | K192: 3705 | M192: 247 | N192: 15 | O192: 3705
I193: 248 | J193: 15 | K193: 3720 | M193: 248 | N193: 15 | O193: 3720
I194: 249 | J194: 15 | K194: 3735 | M194: 249 | N194: 15 | O194: 3735
I195: 250 | J195: 15 | K195: 3750 | M195: 250 | N195: 15 | O195: 3750
I196: 251 | J196: 15 | K196: 3765 | M196: 251 | N196: 15 | O196: 3765
I197: 252 | J197: 15 | K197: 3780 | M197: 252 | N197: 15 | O197: 3780
I198: 253 | J198: 15 | K198: 3795 | M198: 253 | N198: 15 | O198: 3795
I199: 254 | J199: 15 | K199: 3810 | M199: 254 | N199: 15 | O199: 3810
I200: 255 | J200: 15 | K200: 3825 | M200: 255 | N200: 15 | O200: 3825
I201: 256 | J201: 15 | K201: 3840 | M201: 256 | N201: 15 | O201: 3840
I202: 257 | J202: 15 | K202: 3855 | M202: 257 | N202: 15 | O202: 3855
... 2192 more rows

Sheet REGISTROS (hidden)
A1: COTIZACION | B1: FECHA | D1: PROPIETARIO: | F1: UBICACIÓN DE LA OBRA: | H1: TRABAJOS A REALIZAR | L1: SUPERFICIE DEL TERRENO EN M2 | N1: DENSIDAD HABITACIONAL | Q1: FORMA TERRENO | S1: TOPOGRAFIA PLANA O CON PENDIENTE | U1: PROXIMIDAD URBANA | W1: SUPERFICIE CONSTRUIDA EN M2 | Y1: BARDEO ANOTAR METROS LINEALES Y ALTURA | AA1: SUPERFICIE A CONSTRUIR EN M2 | AB1: CLASIFICACION DE LA OBRA POR GENERO | AD1: SALARIO MINIMO DIARIO DE LA REGION | AE1: COSTO BASE POR METRO CUADRADO DE CONSTRUCCION | AF1: FACTOR REGIONAL | AH1: NUMERO DE SEMANAS DE EJECUCION DE OBRA | AJ1: NUMERO DE VISITAS SEMANAL A LA OBRA | AL1: COSTO APROXIMADO TOTAL DE OBRA | AN1: AJUSTE | AP1: HONORARIOS POR DISEÑO ARQUITECTONICO | AQ1: LEVANTAMIENTO TOPOGRAFICO TERRENO (PLANIMETRIA) | AR1: LEVANTAMIENTO TOPOGRAFICO TERRENO (CURVAS DE NIVEL) | AS1: LEVANTAMIENTO GEOREFERENCIADO | AT1: LEVANTAMIENTO TOPOGRAFICO CONSTRUCCION | AU1: LEVANTAMIENTO TOPOGRAFICO INSTALACIONES | AV1: TRAMITE DE CLAVE CATASTRAL | AW1: TRAMITE DE NUMERO OFICIAL | AX1: TRAMITE DE ALINEAMIENTO | AY1: FACTIBILIDAD DE USO DE SUELO | AZ1: TRAMITE BOMBEROS REVISION PROYECTO | BA1: TRAMITE PROTECCION CIVIL | BB1: TRAMITE DE AUTORIZACION MUNICIPAL DE IMPACTO AMBIENTAL | BC1: TRAMITE DE MANIFESTACION DE IMPACTO AMBIENTAL | BD1: USO : | BE1: MODALIDAD : | BF1: UBICACIÓN : | BG1: TRAMITE DE POLICIA VIAL (MOVILIDAD, IMPACTO VIAL) | BH1: FACTIBILIDAD CFE | BI1: FACTIBILIDAD JAPAMI | BJ1: TRAMITE USO DE SUELO | BK1: REGULARIZACION (ANTES INCORPORACION URBANISTICA) | BM1: PROYECTO DE DIVISION O FUSION INDICAR No. DE FRACCIONES | BN1: PROYECTO DE DIVISION O FUSION EN FRACCIONAMIENTOS O REPETITIVOS | BO1: TRAMITE PERMISO BARDEO | BP1: HONORARIOS POR DISEÑO URBANO | BQ1: PERITO ESPECIALIZADO EN ESTRUCTURAS DE ACERO | BR1: PERITO ESPECIALIZADO EN ESTRUCTURAS DE CONCRETO | BS1: PERITO ESPECIALIZADO EN DISEÑO URBANO | BT1: PERITO ESPECIALIZADO | BU1: PERITO ESPECIALIZADO | BV1: HONORARIOS POR CONSULTORIA Y RESPONSIVA | CB1: HONORARIOS POR DISEÑO ARQUITECTONICO | CC1: LEVANTAMIENTO TOPOGRAFICO TERRENO (PLANIMETRIA) | CD1: LEVANTAMIENTO TOPOGRAFICO TERRENO (CURVAS DE NIVEL) | CE1: LEVANTAMIENTO GEOREFERENCIADO | CF1: LEVANTAMIENTO TOPOGRAFICO CONSTRUCCION | CG1: LEVANTAMIENTO TOPOGRAFICO INSTALACIONES | CH1: TRAMITE DE CLAVE CATASTRAL | CI1: TRAMITE DE NUMERO OFICIAL | CJ1: TRAMITE DE ALINEAMIENTO | CK1: FACTIBILIDAD DE USO DE SUELO | CL1: TRAMITE BOMBEROS REVISION PROYECTO | CM1: TRAMITE PROTECCION CIVIL | CN1: TRAMITE DE AUTORIZACION MUNICIPAL DE IMPACTO AMBIENTAL | CO1: TRAMITE DE MANIFESTACION DE IMPACTO AMBIENTAL | CP1: USO : | CQ1: MODALIDAD : | CR1: UBICACIÓN : | CS1: TRAMITE DE POLICIA VIAL (MOVILIDAD, IMPACTO VIAL) | CT1: FACTIBILIDAD CFE | CU1: FACTIBILIDAD JAPAMI | CV1: TRAMITE USO DE SUELO | CW1: REGULARIZACION (ANTES INCORPORACION URBANISTICA) | CX1: DICTAMEN ESTRUCTURAL | CY1: PROYECTO DE DIVISION O FUSION INDICAR No. DE FRACCIONES | CZ1: PROYECTO DE DIVISION O FUSION EN FRACCIONAMIENTOS O REPETITIVOS | DA1: TRAMITE PERMISO BARDEO | DB1: HONORARIOS POR DISEÑO URBANO | DC1: PERITO ESPECIALIZADO EN ESTRUCTURAS DE ACERO | DD1: PERITO ESPECIALIZADO EN ESTRUCTURAS DE CONCRETO | DE1: PERITO ESPECIALIZADO EN DISEÑO URBANO | DF1: PERITO ESPECIALIZADO | DG1: PERITO ESPECIALIZADO | DH1: HONORARIOS POR CONSULTORIA Y RESPONSIVA | DJ1: TOTAL HONORARIOS | DM1: IVA | DP1: GRAN TOTAL HONORARIOS | DR1: =+IF([1]CONSULTARCOTIZACION!F2=""," ",[1]CONSULTARCOTIZACION!$F$2) ->  | DS1: FECHA | DU1: PROPIETARIO: | DW1: UBICACIÓN DE LA OBRA: | DY1: TRABAJOS A REALIZAR | EC1: SUPERFICIE DEL TERRENO EN M2 | EE1: DENSIDAD HABITACIONAL | EH1: FORMA TERRENO | EJ1: TOPOGRAFIA PLANA O CON PENDIENTE | EL1: PROXIMIDAD URBANA | EN1: SUPERFICIE CONSTRUIDA EN M2 | EP1: BARDEO ANOTAR METROS LINEALES Y ALTURA | ER1: SUPERFICIE A CONSTRUIR EN M2 | ES1: CLASIFICACION DE LA OBRA POR GENERO | EU1: SALARIO MINIMO DIARIO DE LA REGION | EV1: COSTO BASE POR METRO CUADRADO DE CONSTRUCCION | EW1: FACTOR REGIONAL | EY1: NUMERO DE SEMANAS DE EJECUCION DE OBRA | FA1: NUMERO DE VISITAS SEMANAL A LA OBRA | FC1: COSTO APROXIMADO TOTAL DE OBRA | FE1: AJUSTE | FG1: HONORARIOS POR DISEÑO ARQUITECTONICO | FH1: LEVANTAMIENTO TOPOGRAFICO TERRENO (PLANIMETRIA) | FI1: LEVANTAMIENTO TOPOGRAFICO TERRENO (CURVAS DE NIVEL) | FJ1: LEVANTAMIENTO GEOREFERENCIADO | FK1: LEVANTAMIENTO TOPOGRAFICO CONSTRUCCION | FL1: LEVANTAMIENTO TOPOGRAFICO INSTALACIONES | FM1: TRAMITE DE CLAVE CATASTRAL | FN1: TRAMITE DE NUMERO OFICIAL | FO1: TRAMITE DE ALINEAMIENTO | FP1: FACTIBILIDAD DE USO DE SUELO | FQ1: TRAMITE BOMBEROS REVISION PROYECTO | FR1: TRAMITE PROTECCION CIVIL | FS1: TRAMITE DE AUTORIZACION MUNICIPAL DE IMPACTO AMBIENTAL | FT1: TRAMITE DE MANIFESTACION DE IMPACTO AMBIENTAL | FU1: USO : | FV1: MODALIDAD : | FW1: UBICACIÓN : | FX1: TRAMITE DE POLICIA VIAL (MOVILIDAD, IMPACTO VIAL) | FY1: FACTIBILIDAD CFE | FZ1: FACTIBILIDAD JAPAMI | GA1: TRAMITE USO DE SUELO | GB1: REGULARIZACION (ANTES INCORPORACION URBANISTICA) | GD1: PROYECTO DE DIVISION O FUSION INDICAR No. DE FRACCIONES | GE1: PROYECTO DE DIVISION O FUSION EN FRACCIONAMIENTOS O REPETITIVOS | GF1: TRAMITE PERMISO BARDEO | GG1: HONORARIOS POR DISEÑO URBANO | GH1: PERITO ESPECIALIZADO EN ESTRUCTURAS DE ACERO | GI1: PERITO ESPECIALIZADO EN ESTRUCTURAS DE CONCRETO | GJ1: PERITO ESPECIALIZADO EN DISEÑO URBANO | GK1: PERITO ESPECIALIZADO | GL1: PERITO ESPECIALIZADO | GM1: HONORARIOS POR CONSULTORIA Y RESPONSIVA | GS1: HONORARIOS POR DISEÑO ARQUITECTONICO | GT1: LEVANTAMIENTO TOPOGRAFICO TERRENO (PLANIMETRIA) | GU1: LEVANTAMIENTO TOPOGRAFICO TERRENO (CURVAS DE NIVEL) | GV1: LEVANTAMIENTO GEOREFERENCIADO | GW1: LEVANTAMIENTO TOPOGRAFICO CONSTRUCCION | GX1: LEVANTAMIENTO TOPOGRAFICO INSTALACIONES | GY1: TRAMITE DE CLAVE CATASTRAL | GZ1: TRAMITE DE NUMERO OFICIAL | HA1: TRAMITE DE ALINEAMIENTO | HB1: FACTIBILIDAD DE USO DE SUELO | HC1: TRAMITE BOMBEROS REVISION PROYECTO | HD1: TRAMITE PROTECCION CIVIL | HE1: TRAMITE DE AUTORIZACION MUNICIPAL DE IMPACTO AMBIENTAL | HF1: TRAMITE DE MANIFESTACION DE IMPACTO AMBIENTAL | HG1: USO : | HH1: MODALIDAD : | HI1: UBICACIÓN : | HJ1: TRAMITE DE POLICIA VIAL (MOVILIDAD, IMPACTO VIAL) | HK1: FACTIBILIDAD CFE | HL1: FACTIBILIDAD JAPAMI | HM1: TRAMITE USO DE SUELO | HN1: REGULARIZACION (ANTES INCORPORACION URBANISTICA) | HO1: DICTAMEN ESTRUCTURAL | HP1: PROYECTO DE DIVISION O FUSION INDICAR No. DE FRACCIONES | HQ1: PROYECTO DE DIVISION O FUSION EN FRACCIONAMIENTOS O REPETITIVOS | HR1: TRAMITE PERMISO BARDEO | HS1: HONORARIOS POR DISEÑO URBANO | HT1: PERITO ESPECIALIZADO EN ESTRUCTURAS DE ACERO | HU1: PERITO ESPECIALIZADO EN ESTRUCTURAS DE CONCRETO | HV1: PERITO ESPECIALIZADO EN DISEÑO URBANO | HW1: PERITO ESPECIALIZADO | HX1: PERITO ESPECIALIZADO | HY1: HONORARIOS POR CONSULTORIA Y RESPONSIVA | IA1: TOTAL HONORARIOS | ID1: IVA | IG1: GRAN TOTAL HONORARIOS
A2: 1 | B2: 2018-03-19 | AD2: 88.36 | AE2: 5990 | AF2: 0.885 | AN2: 0 | BC2: MANIFESTACION DE IMPACTO AMBIENTAL | BK2: RESPONSIVA TECNICA | BL2: DICTAMEN ESTRUCTURAL | BM2: 0 | BN2: 0 | DC2: 0 | DD2: 0 | DE2: 0 | DF2: 0 | DG2: 0 | DJ2: 0 | DM2: 0 | DP2: 0 | DR2: =VLOOKUP($DR$1,$A:$DP,1,FALSE) ->  | DS2: =VLOOKUP($DR$1,$A:$DP,2,FALSE) ->  | DT2: =VLOOKUP($DR$1,$A:$DP,3,FALSE) ->  | DU2: =VLOOKUP($DR$1,$A:$DP,4,FALSE) ->  | DV2: =VLOOKUP($DR$1,$A:$DP,5,FALSE) ->  | DW2: =VLOOKUP($DR$1,$A:$DP,6,FALSE) ->  | DX2: =VLOOKUP($DR$1,$A:$DP,7,FALSE) ->  | DY2: =VLOOKUP($DR$1,$A:$DP,8,FALSE) ->  | DZ2: =VLOOKUP($DR$1,$A:$DP,9,FALSE) ->  | EA2: =VLOOKUP($DR$1,$A:$DP,10,FALSE) ->  | EB2: =VLOOKUP($DR$1,$A:$DP,11,FALSE) ->  | EC2: =VLOOKUP($DR$1,$A:$DP,12,FALSE) ->  | ED2: =VLOOKUP($DR$1,$A:$DP,13,FALSE) ->  | EE2: =VLOOKUP($DR$1,$A:$DP,14,FALSE) ->  | EF2: =VLOOKUP($DR$1,$A:$DP,15,FALSE) ->  | EG2: =VLOOKUP($DR$1,$A:$DP,16,FALSE) ->  | EH2: =VLOOKUP($DR$1,$A:$DP,17,FALSE) ->  | EI2: =VLOOKUP($DR$1,$A:$DP,18,FALSE) ->  | EJ2: =VLOOKUP($DR$1,$A:$DP,19,FALSE) ->  | EK2: =VLOOKUP($DR$1,$A:$DP,20,FALSE) ->  | EL2: =VLOOKUP($DR$1,$A:$DP,21,FALSE) ->  | EM2: =VLOOKUP($DR$1,$A:$DP,22,FALSE) ->  | EN2: =VLOOKUP($DR$1,$A:$DP,23,FALSE) ->  | EO2: =VLOOKUP($DR$1,$A:$DP,24,FALSE) ->  | EP2: =VLOOKUP($DR$1,$A:$DP,25,FALSE) ->  | EQ2: =VLOOKUP($DR$1,$A:$DP,26,FALSE) ->  | ER2: =VLOOKUP($DR$1,$A:$DP,27,FALSE) ->  | ES2: =VLOOKUP($DR$1,$A:$DP,28,FALSE) ->  | ET2: =VLOOKUP($DR$1,$A:$DP,29,FALSE) ->  | EU2: =VLOOKUP($DR$1,$A:$DP,30,FALSE) ->  | EV2: =VLOOKUP($DR$1,$A:$DP,31,FALSE) ->  | EW2: =VLOOKUP($DR$1,$A:$DP,32,FALSE) ->  | EX2: =VLOOKUP($DR$1,$A:$DP,33,FALSE) ->  | EY2: =VLOOKUP($DR$1,$A:$DP,34,FALSE) ->  | EZ2: =VLOOKUP($DR$1,$A:$DP,35,FALSE) ->  | FA2: =VLOOKUP($DR$1,$A:$DP,36,FALSE) ->  | FB2: =VLOOKUP($DR$1,$A:$DP,37,FALSE) ->  | FC2: =VLOOKUP($DR$1,$A:$DP,38,FALSE) ->  | FD2: =VLOOKUP($DR$1,$A:$DP,39,FALSE) ->  | FE2: =VLOOKUP($DR$1,$A:$DP,40,FALSE) ->  | FF2: =VLOOKUP($DR$1,$A:$DP,41,FALSE) ->  | FG2: =VLOOKUP($DR$1,$A:$DP,42,FALSE) ->  | FH2: =VLOOKUP($DR$1,$A:$DP,43,FALSE) ->  | FI2: =VLOOKUP($DR$1,$A:$DP,44,FALSE) ->  | FJ2: =VLOOKUP($DR$1,$A:$DP,45,FALSE) ->  | FK2: =VLOOKUP($DR$1,$A:$DP,46,FALSE) ->  | FL2: =VLOOKUP($DR$1,$A:$DP,47,FALSE) ->  | FM2: =VLOOKUP($DR$1,$A:$DP,48,FALSE) ->  | FN2: =VLOOKUP($DR$1,$A:$DP,49,FALSE) ->  | FO2: =VLOOKUP($DR$1,$A:$DP,50,FALSE) ->  | FP2: =VLOOKUP($DR$1,$A:$DP,51,FALSE) ->  | FQ2: =VLOOKUP($DR$1,$A:$DP,52,FALSE) ->  | FR2: =VLOOKUP($DR$1,$A:$DP,53,FALSE) ->  | FS2: =VLOOKUP($DR$1,$A:$DP,54,FALSE) ->  | FT2: =VLOOKUP($DR$1,$A:$DP,55,FALSE) ->  | FU2: =VLOOKUP($DR$1,$A:$DP,56,FALSE) ->  | FV2: =VLOOKUP($DR$1,$A:$DP,57,FALSE) ->  | FW2: =VLOOKUP($DR$1,$A:$DP,58,FALSE) ->  | FX2: =VLOOKUP($DR$1,$A:$DP,59,FALSE) ->  | FY2: =VLOOKUP($DR$1,$A:$DP,60,FALSE) ->  | FZ2: =VLOOKUP($DR$1,$A:$DP,61,FALSE) ->  | GA2: =VLOOKUP($DR$1,$A:$DP,62,FALSE) ->  | GB2: =VLOOKUP($DR$1,$A:$DP,63,FALSE) ->  | GC2: =VLOOKUP($DR$1,$A:$DP,64,FALSE) ->  | GD2: =VLOOKUP($DR$1,$A:$DP,65,FALSE) ->  | GE2: =VLOOKUP($DR$1,$A:$DP,66,FALSE) ->  | GF2: =VLOOKUP($DR$1,$A:$DP,67,FALSE) ->  | GG2: =VLOOKUP($DR$1,$A:$DP,68,FALSE) ->  | GH2: =VLOOKUP($DR$1,$A:$DP,69,FALSE) ->  | GI2: =VLOOKUP($DR$1,$A:$DP,70,FALSE) ->  | GJ2: =VLOOKUP($DR$1,$A:$DP,71,FALSE) ->  | GK2: =VLOOKUP($DR$1,$A:$DP,72,FALSE) ->  | GL2: =VLOOKUP($DR$1,$A:$DP,73,FALSE) ->  | GM2: =VLOOKUP($DR$1,$A:$DP,74,FALSE) ->  | GN2: =VLOOKUP($DR$1,$A:$DP,75,FALSE) ->  | GO2: =VLOOKUP($DR$1,$A:$DP,76,FALSE) ->  | GP2: =VLOOKUP($DR$1,$A:$DP,77,FALSE) ->  | GQ2: =VLOOKUP($DR$1,$A:$DP,78,FALSE) ->  | GR2: =VLOOKUP($DR$1,$A:$DP,79,FALSE) ->  | GS2: =VLOOKUP($DR$1,$A:$DP,80,FALSE) ->  | GT2: =VLOOKUP($DR$1,$A:$DP,81,FALSE) ->  | GU2: =VLOOKUP($DR$1,$A:$DP,82,FALSE) ->  | GV2: =VLOOKUP($DR$1,$A:$DP,83,FALSE) ->  | GW2: =VLOOKUP($DR$1,$A:$DP,84,FALSE) ->  | GX2: =VLOOKUP($DR$1,$A:$DP,85,FALSE) ->  | GY2: =VLOOKUP($DR$1,$A:$DP,86,FALSE) ->  | GZ2: =VLOOKUP($DR$1,$A:$DP,87,FALSE) ->  | HA2: =VLOOKUP($DR$1,$A:$DP,88,FALSE) ->  | HB2: =VLOOKUP($DR$1,$A:$DP,89,FALSE) ->  | HC2: =VLOOKUP($DR$1,$A:$DP,90,FALSE) ->  | HD2: =VLOOKUP($DR$1,$A:$DP,91,FALSE) ->  | HE2: =VLOOKUP($DR$1,$A:$DP,92,FALSE) ->  | HF2: =VLOOKUP($DR$1,$A:$DP,93,FALSE) ->  | HG2: =VLOOKUP($DR$1,$A:$DP,94,FALSE) ->  | HH2: =VLOOKUP($DR$1,$A:$DP,95,FALSE) ->  | HI2: =VLOOKUP($DR$1,$A:$DP,96,FALSE) ->  | HJ2: =VLOOKUP($DR$1,$A:$DP,97,FALSE) ->  | HK2: =VLOOKUP($DR$1,$A:$DP,98,FALSE) ->  | HL2: =VLOOKUP($DR$1,$A:$DP,99,FALSE) ->  | HM2: =VLOOKUP($DR$1,$A:$DP,100,FALSE) ->  | HN2: =VLOOKUP($DR$1,$A:$DP,101,FALSE) ->  | HO2: =VLOOKUP($DR$1,$A:$DP,102,FALSE) ->  | HP2: =VLOOKUP($DR$1,$A:$DP,103,FALSE) ->  | HQ2: =VLOOKUP($DR$1,$A:$DP,104,FALSE) ->  | HR2: =VLOOKUP($DR$1,$A:$DP,105,FALSE) ->  | HS2: =VLOOKUP($DR$1,$A:$DP,106,FALSE) ->  | HT2: =VLOOKUP($DR$1,$A:$DP,107,FALSE) ->  | HU2: =VLOOKUP($DR$1,$A:$DP,108,FALSE) ->  | HV2: =VLOOKUP($DR$1,$A:$DP,109,FALSE) ->  | HW2: =VLOOKUP($DR$1,$A:$DP,110,FALSE) ->  | HX2: =VLOOKUP($DR$1,$A:$DP,111,FALSE) ->  | HY2: =VLOOKUP($DR$1,$A:$DP,112,FALSE) ->  | HZ2: =VLOOKUP($DR$1,$A:$DP,113,FALSE) ->  | IA2: =VLOOKUP($DR$1,$A:$DP,114,FALSE) ->  | IB2: =VLOOKUP($DR$1,$A:$DP,115,FALSE) ->  | IC2: =VLOOKUP($DR$1,$A:$DP,116,FALSE) ->  | ID2: =VLOOKUP($DR$1,$A:$DP,117,FALSE) ->  | IE2: =VLOOKUP($DR$1,$A:$DP,118,FALSE) ->  | IF2: =VLOOKUP($DR$1,$A:$DP,119,FALSE) ->  | IG2: =VLOOKUP($DR$1,$A:$DP,120,FALSE) -> 
B9: EL CURSOR DEBERA ESTAR EN LA CELDA A2
B10: EN LA HOJA DE CONSULTARCOTIZACION SE LLEVA A CABO LA BUSQUEDA DESDE ESTA PAGINA
